Workbook

Sheet Kalender
A1: Kalender | L1: 2026
C2: =NETWORKDAYS(A4,EOMONTH(A4,0),GFT) -> 20 | D2: Arbeitstage | I2: =NETWORKDAYS(G4,EOMONTH(G4,0),GFT) -> 20 | J2: Arbeitstage | O2: =NETWORKDAYS(M4,EOMONTH(M4,0),GFT) -> 22 | P2: Arbeitstage | U2: =NETWORKDAYS(S4,EOMONTH(S4,0),GFT) -> 20 | V2: Arbeitstage | AA2: =NETWORKDAYS(Y4,EOMONTH(Y4,0),GFT) -> 19 | AB2: Arbeitstage | AG2: =NETWORKDAYS(AE4,EOMONTH(AE4,0),GFT) -> 22 | AH2: Arbeitstage | AM2: =NETWORKDAYS(AK4,EOMONTH(AK4,0),GFT) -> 23 | AN2: Arbeitstage | AS2: =NETWORKDAYS(AQ4,EOMONTH(AQ4,0),GFT) -> 21 | AT2: Arbeitstage | AY2: =NETWORKDAYS(AW4,EOMONTH(AW4,0),GFT) -> 22 | AZ2: Arbeitstage | BE2: =NETWORKDAYS(BC4,EOMONTH(BC4,0),GFT) -> 22 | BF2: Arbeitstage | BK2: =NETWORKDAYS(BI4,EOMONTH(BI4,0),GFT) -> 21 | BL2: Arbeitstage | BQ2: =NETWORKDAYS(BO4,EOMONTH(BO4,0),GFT) -> 22 | BR2: Arbeitstage
A3: Januar | G3: Februar | M3: März | S3: April | Y3: Mai | AE3: Juni | AK3: Juli | AQ3: August | AW3: September | BC3: Oktober | BI3: November | BO3: Dezember
A4: =IFERROR((ROW()-3&"."&A$3&"."&$L$1)*1,"") -> 2026-01-01 | B4: =IFERROR((ROW()-3&"."&A$3&"."&$L$1)*1,"") -> 46023 | C4: =A4 -> 2026-01-01 | D4: =IFERROR(VLOOKUP(B4,Feiertage!$A$3:$B$29,2,FALSE),"") -> Neujahr | E4: =IFERROR(VLOOKUP(B4,Mondphasen!$G$23:$H$36,2,FALSE),"") ->  | F4: =IFERROR(WEEKNUM(A4,21),"") -> 1 | G4: =IFERROR((ROW()-3&"."&G$3&"."&$L$1)*1,"") -> 2026-02-01 | H4: =IFERROR((ROW()-3&"."&G$3&"."&$L$1)*1,"") -> 46054 | I4: =G4 -> 2026-02-01 | J4: =IFERROR(VLOOKUP(H4,Feiertage!$A$3:$B$29,2,FALSE),"") ->  | K4: =IFERROR(VLOOKUP(H4,Mondphasen!$G$23:$H$36,2,FALSE),"") ->  | L4: =IFERROR(WEEKNUM(G4,21),"") -> 5 | M4: =IFERROR((ROW()-3&"."&M$3&"."&$L$1)*1,"") -> 2026-03-01 | N4: =IFERROR((ROW()-3&"."&M$3&"."&$L$1)*1,"") -> 46082 | O4: =M4 -> 2026-03-01 | P4: =IFERROR(VLOOKUP(N4,Feiertage!$A$3:$B$29,2,FALSE),"") ->  | Q4: =IFERROR(VLOOKUP(N4,Mondphasen!$G$23:$H$36,2,FALSE),"") ->  | R4: =IFERROR(WEEKNUM(M4,21),"") -> 9 | S4: =IFERROR((ROW()-3&"."&S$3&"."&$L$1)*1,"") -> 2026-04-01 | T4: =IFERROR((ROW()-3&"."&S$3&"."&$L$1)*1,"") -> 46113 | U4: =S4 -> 2026-04-01 | V4: =IFERROR(VLOOKUP(T4,Feiertage!$A$3:$B$29,2,FALSE),"") ->  | W4: =IFERROR(VLOOKUP(T4,Mondphasen!$G$23:$H$36,2,FALSE),"") ->  | X4: =IFERROR(WEEKNUM(S4,21),"") -> 14 | Y4: =IFERROR((ROW()-3&"."&Y$3&"."&$L$1)*1,"") -> 2026-05-01 | Z4: =IFERROR((ROW()-3&"."&Y$3&"."&$L$1)*1,"") -> 46143 | AA4: =Y4 -> 2026-05-01 | AB4: =IFERROR(VLOOKUP(Z4,Feiertage!$A$3:$B$29,2,FALSE),"") -> Tag der Arbeit | AC4: =IFERROR(VLOOKUP(Z4,Mondphasen!$G$23:$H$36,2,FALSE),"") -> l | AD4: =IFERROR(WEEKNUM(Y4,21),"") -> 18 | AE4: =IFERROR((ROW()-3&"."&AE$3&"."&$L$1)*1,"") -> 2026-06-01 | AF4: =IFERROR((ROW()-3&"."&AE$3&"."&$L$1)*1,"") -> 46174 | AG4: =AE4 -> 2026-06-01 | AH4: =IFERROR(VLOOKUP(AF4,Feiertage!$A$3:$B$29,2,FALSE),"") ->  | AI4: =IFERROR(VLOOKUP(AF4,Mondphasen!$G$23:$H$36,2,FALSE),"") ->  | AJ4: =IFERROR(WEEKNUM(AE4,21),"") -> 23 | AK4: =IFERROR((ROW()-3&"."&AK$3&"."&$L$1)*1,"") -> 2026-07-01 | AL4: =IFERROR((ROW()-3&"."&AK$3&"."&$L$1)*1,"") -> 46204 | AM4: =AK4 -> 2026-07-01 | AN4: =IFERROR(VLOOKUP(AL4,Feiertage!$A$3:$B$29,2,FALSE),"") ->  | AO4: =IFERROR(VLOOKUP(AL4,Mondphasen!$G$23:$H$36,2,FALSE),"") ->  | AP4: =IFERROR(WEEKNUM(AK4,21),"") -> 27 | AQ4: =IFERROR((ROW()-3&"."&AQ$3&"."&$L$1)*1,"") -> 2026-08-01 | AR4: =IFERROR((ROW()-3&"."&AQ$3&"."&$L$1)*1,"") -> 46235 | AS4: =AQ4 -> 2026-08-01 | AT4: =IFERROR(VLOOKUP(AR4,Feiertage!$A$3:$B$29,2,FALSE),"") -> National-Feiertag CH | AU4: =IFERROR(VLOOKUP(AR4,Mondphasen!$G$23:$H$36,2,FALSE),"") ->  | AV4: =IFERROR(WEEKNUM(AQ4,21),"") -> 31 | AW4: =IFERROR((ROW()-3&"."&AW$3&"."&$L$1)*1,"") -> 2026-09-01 | AX4: =IFERROR((ROW()-3&"."&AW$3&"."&$L$1)*1,"") -> 46266 | AY4: =AW4 -> 2026-09-01 | AZ4: =IFERROR(VLOOKUP(AX4,Feiertage!$A$3:$B$29,2,FALSE),"") ->  | BA4: =IFERROR(VLOOKUP(AX4,Mondphasen!$G$23:$H$36,2,FALSE),"") ->  | BB4: =IFERROR(WEEKNUM(AW4,21),"") -> 36 | BC4: =IFERROR((ROW()-3&"."&BC$3&"."&$L$1)*1,"") -> 2026-10-01 | BD4: =IFERROR((ROW()-3&"."&BC$3&"."&$L$1)*1,"") -> 46296 | BE4: =BC4 -> 2026-10-01 | BF4: =IFERROR(VLOOKUP(BD4,Feiertage!$A$3:$B$29,2,FALSE),"") ->  | BG4: =IFERROR(VLOOKUP(BD4,Mondphasen!$G$23:$H$36,2,FALSE),"") ->  | BH4: =IFERROR(WEEKNUM(BC4,21),"") -> 40 | BI4: =IFERROR((ROW()-3&"."&BI$3&"."&$L$1)*1,"") -> 2026-11-01 | BJ4: =IFERROR((ROW()-3&"."&BI$3&"."&$L$1)*1,"") -> 46327 | BK4: =BI4 -> 2026-11-01 | BL4: =IFERROR(VLOOKUP(BJ4,Feiertage!$A$3:$B$29,2,FALSE),"") -> Allerheiligen | BM4: =IFERROR(VLOOKUP(BJ4,Mondphasen!$G$23:$H$36,2,FALSE),"") ->  | BN4: =IFERROR(WEEKNUM(BI4,21),"") -> 44 | BO4: =IFERROR((ROW()-3&"."&BO$3&"."&$L$1)*1,"") -> 2026-12-01 | BP4: =IFERROR((ROW()-3&"."&BO$3&"."&$L$1)*1,"") -> 46357 | BQ4: =BO4 -> 2026-12-01 | BR4: =IFERROR(VLOOKUP(BP4,Feiertage!$A$3:$B$29,2,FALSE),"") ->  | BS4: =IFERROR(VLOOKUP(BP4,Mondphasen!$G$23:$H$36,2,FALSE),"") ->  | BT4: =IFERROR(WEEKNUM(BO4,21),"") -> 49
A5: 2026-01-02 | B5: 46024 | C5: =A5 -> 2026-01-02 | D5: =IFERROR(VLOOKUP(B5,Feiertage!$A$3:$B$29,2,FALSE),"") -> Berchtoldstag | E5: =IFERROR(VLOOKUP(B5,Mondphasen!$G$23:$H$36,2,FALSE),"") ->  | F5: =IFERROR(WEEKNUM(A5,21),"") -> 1 | G5: 2026-02-02 | H5: 46055 | I5: =G5 -> 2026-02-02 | J5: =IFERROR(VLOOKUP(H5,Feiertage!$A$3:$B$29,2,FALSE),"") ->  | K5: =IFERROR(VLOOKUP(H5,Mondphasen!$G$23:$H$36,2,FALSE),"") -> l | L5: 6 | M5: 2026-03-02 | N5: 46083 | O5: =M5 -> 2026-03-02 | P5: =IFERROR(VLOOKUP(N5,Feiertage!$A$3:$B$29,2,FALSE),"") ->  | Q5: =IFERROR(VLOOKUP(N5,Mondphasen!$G$23:$H$36,2,FALSE),"") ->  | R5: =IFERROR(WEEKNUM(M5,21),"") -> 10 | S5: 2026-04-02 | T5: 46114 | U5: =S5 -> 2026-04-02 | V5: =IFERROR(VLOOKUP(T5,Feiertage!$A$3:$B$29,2,FALSE),"") -> Grün-Donnerstag | W5: =IFERROR(VLOOKUP(T5,Mondphasen!$G$23:$H$36,2,FALSE),"") -> l | X5: 14 | Y5: 2026-05-02 | Z5: 46144 | AA5: =Y5 -> 2026-05-02 | AB5: =IFERROR(VLOOKUP(Z5,Feiertage!$A$3:$B$29,2,FALSE),"") ->  | AC5: =IFERROR(VLOOKUP(Z5,Mondphasen!$G$23:$H$36,2,FALSE),"") ->  | AD5: 18 | AE5: 2026-06-02 | AF5: 46175 | AG5: =AE5 -> 2026-06-02 | AH5: =IFERROR(VLOOKUP(AF5,Feiertage!$A$3:$B$29,2,FALSE),"") ->  | AI5: =IFERROR(VLOOKUP(AF5,Mondphasen!$G$23:$H$36,2,FALSE),"") ->  | AJ5: 23 | AK5: 2026-07-02 | AL5: 46205 | AM5: =AK5 -> 2026-07-02 | AN5: =IFERROR(VLOOKUP(AL5,Feiertage!$A$3:$B$29,2,FALSE),"") ->  | AO5: =IFERROR(VLOOKUP(AL5,Mondphasen!$G$23:$H$36,2,FALSE),"") ->  | AP5: 27 | AQ5: 2026-08-02 | AR5: 46236 | AS5: =AQ5 -> 2026-08-02 | AT5: =IFERROR(VLOOKUP(AR5,Feiertage!$A$3:$B$29,2,FALSE),"") ->  | AU5: =IFERROR(VLOOKUP(AR5,Mondphasen!$G$23:$H$36,2,FALSE),"") ->  | AV5: 31 | AW5: 2026-09-02 | AX5: 46267 | AY5: =AW5 -> 2026-09-02 | AZ5: =IFERROR(VLOOKUP(AX5,Feiertage!$A$3:$B$29,2,FALSE),"") ->  | BA5: =IFERROR(VLOOKUP(AX5,Mondphasen!$G$23:$H$36,2,FALSE),"") ->  | BB5: 36 | BC5: 2026-10-02 | BD5: 46297 | BE5: =BC5 -> 2026-10-02 | BF5: =IFERROR(VLOOKUP(BD5,Feiertage!$A$3:$B$29,2,FALSE),"") ->  | BG5: =IFERROR(VLOOKUP(BD5,Mondphasen!$G$23:$H$36,2,FALSE),"") ->  | BH5: 40 | BI5: 2026-11-02 | BJ5: 46328 | BK5: =BI5 -> 2026-11-02 | BL5: =IFERROR(VLOOKUP(BJ5,Feiertage!$A$3:$B$29,2,FALSE),"") ->  | BM5: =IFERROR(VLOOKUP(BJ5,Mondphasen!$G$23:$H$36,2,FALSE),"") ->  | BN5: 45 | BO5: 2026-12-02 | BP5: 46358 | BQ5: =BO5 -> 2026-12-02 | BR5: =IFERROR(VLOOKUP(BP5,Feiertage!$A$3:$B$29,2,FALSE),"") ->  | BS5: =IFERROR(VLOOKUP(BP5,Mondphasen!$G$23:$H$36,2,FALSE),"") ->  | BT5: =IFERROR(WEEKNUM(BO5,21),"") -> 49
A6: 2026-01-03 | B6: 46025 | C6: 2026-01-03 | D6: =IFERROR(VLOOKUP(B6,Feiertage!$A$3:$B$29,2,FALSE),"") ->  | E6: =IFERROR(VLOOKUP(B6,Mondphasen!$G$23:$H$36,2,FALSE),"") -> l | F6: 1 | G6: 2026-02-03 | H6: 46056 | I6: 2026-02-03 | J6: =IFERROR(VLOOKUP(H6,Feiertage!$A$3:$B$29,2,FALSE),"") ->  | K6: =IFERROR(VLOOKUP(H6,Mondphasen!$G$23:$H$36,2,FALSE),"") ->  | L6: 6 | M6: 2026-03-03 | N6: 46084 | O6: 2026-03-03 | P6: =IFERROR(VLOOKUP(N6,Feiertage!$A$3:$B$29,2,FALSE),"") ->  | Q6: =IFERROR(VLOOKUP(N6,Mondphasen!$G$23:$H$36,2,FALSE),"") -> l | R6: 10 | S6: 2026-04-03 | T6: 46115 | U6: 2026-04-03 | V6: =IFERROR(VLOOKUP(T6,Feiertage!$A$3:$B$29,2,FALSE),"") -> Karfreitag | W6: =IFERROR(VLOOKUP(T6,Mondphasen!$G$23:$H$36,2,FALSE),"") ->  | X6: 14 | Y6: 2026-05-03 | Z6: 46145 | AA6: 2026-05-03 | AB6: =IFERROR(VLOOKUP(Z6,Feiertage!$A$3:$B$29,2,FALSE),"") ->  | AC6: =IFERROR(VLOOKUP(Z6,Mondphasen!$G$23:$H$36,2,FALSE),"") ->  | AD6: 18 | AE6: 2026-06-03 | AF6: 46176 | AG6: 2026-06-03 | AH6: =IFERROR(VLOOKUP(AF6,Feiertage!$A$3:$B$29,2,FALSE),"") ->  | AI6: =IFERROR(VLOOKUP(AF6,Mondphasen!$G$23:$H$36,2,FALSE),"") ->  | AJ6: 23 | AK6: 2026-07-03 | AL6: 46206 | AM6: 2026-07-03 | AN6: =IFERROR(VLOOKUP(AL6,Feiertage!$A$3:$B$29,2,FALSE),"") ->  | AO6: =IFERROR(VLOOKUP(AL6,Mondphasen!$G$23:$H$36,2,FALSE),"") ->  | AP6: 27 | AQ6: 2026-08-03 | AR6: 46237 | AS6: 2026-08-03 | AT6: =IFERROR(VLOOKUP(AR6,Feiertage!$A$3:$B$29,2,FALSE),"") ->  | AU6: =IFERROR(VLOOKUP(AR6,Mondphasen!$G$23:$H$36,2,FALSE),"") ->  | AV6: 32 | AW6: 2026-09-03 | AX6: 46268 | AY6: 2026-09-03 | AZ6: =IFERROR(VLOOKUP(AX6,Feiertage!$A$3:$B$29,2,FALSE),"") ->  | BA6: =IFERROR(VLOOKUP(AX6,Mondphasen!$G$23:$H$36,2,FALSE),"") ->  | BB6: 36 | BC6: 2026-10-03 | BD6: 46298 | BE6: 2026-10-03 | BF6: =IFERROR(VLOOKUP(BD6,Feiertage!$A$3:$B$29,2,FALSE),"") ->  | BG6: =IFERROR(VLOOKUP(BD6,Mondphasen!$G$23:$H$36,2,FALSE),"") ->  | BH6: 40 | BI6: 2026-11-03 | BJ6: 46329 | BK6: 2026-11-03 | BL6: =IFERROR(VLOOKUP(BJ6,Feiertage!$A$3:$B$29,2,FALSE),"") ->  | BM6: =IFERROR(VLOOKUP(BJ6,Mondphasen!$G$23:$H$36,2,FALSE),"") ->  | BN6: 45 | BO6: 2026-12-03 | BP6: 46359 | BQ6: 2026-12-03 | BR6: =IFERROR(VLOOKUP(BP6,Feiertage!$A$3:$B$29,2,FALSE),"") ->  | BS6: =IFERROR(VLOOKUP(BP6,Mondphasen!$G$23:$H$36,2,FALSE),"") ->  | BT6: 49
A7: 2026-01-04 | B7: 46026 | C7: 2026-01-04 | D7: =IFERROR(VLOOKUP(B7,Feiertage!$A$3:$B$29,2,FALSE),"") ->  | E7: =IFERROR(VLOOKUP(B7,Mondphasen!$G$23:$H$36,2,FALSE),"") ->  | F7: 1 | G7: 2026-02-04 | H7: 46057 | I7: 2026-02-04 | J7: =IFERROR(VLOOKUP(H7,Feiertage!$A$3:$B$29,2,FALSE),"") ->  | K7: =IFERROR(VLOOKUP(H7,Mondphasen!$G$23:$H$36,2,FALSE),"") ->  | L7: 6 | M7: 2026-03-04 | N7: 46085 | O7: 2026-03-04 | P7: =IFERROR(VLOOKUP(N7,Feiertage!$A$3:$B$29,2,FALSE),"") ->  | Q7: =IFERROR(VLOOKUP(N7,Mondphasen!$G$23:$H$36,2,FALSE),"") ->  | R7: 10 | S7: 2026-04-04 | T7: 46116 | U7: 2026-04-04 | V7: =IFERROR(VLOOKUP(T7,Feiertage!$A$3:$B$29,2,FALSE),"") ->  | W7: =IFERROR(VLOOKUP(T7,Mondphasen!$G$23:$H$36,2,FALSE),"") ->  | X7: 14 | Y7: 2026-05-04 | Z7: 46146 | AA7: 2026-05-04 | AB7: =IFERROR(VLOOKUP(Z7,Feiertage!$A$3:$B$29,2,FALSE),"") ->  | AC7: =IFERROR(VLOOKUP(Z7,Mondphasen!$G$23:$H$36,2,FALSE),"") ->  | AD7: 19 | AE7: 2026-06-04 | AF7: 46177 | AG7: 2026-06-04 | AH7: =IFERROR(VLOOKUP(AF7,Feiertage!$A$3:$B$29,2,FALSE),"") -> Fronleichnam | AI7: =IFERROR(VLOOKUP(AF7,Mondphasen!$G$23:$H$36,2,FALSE),"") ->  | AJ7: 23 | AK7: 2026-07-04 | AL7: 46207 | AM7: 2026-07-04 | AN7: =IFERROR(VLOOKUP(AL7,Feiertage!$A$3:$B$29,2,FALSE),"") ->  | AO7: =IFERROR(VLOOKUP(AL7,Mondphasen!$G$23:$H$36,2,FALSE),"") ->  | AP7: 27 | AQ7: 2026-08-04 | AR7: 46238 | AS7: 2026-08-04 | AT7: =IFERROR(VLOOKUP(AR7,Feiertage!$A$3:$B$29,2,FALSE),"") ->  | AU7: =IFERROR(VLOOKUP(AR7,Mondphasen!$G$23:$H$36,2,FALSE),"") ->  | AV7: 32 | AW7: 2026-09-04 | AX7: 46269 | AY7: 2026-09-04 | AZ7: =IFERROR(VLOOKUP(AX7,Feiertage!$A$3:$B$29,2,FALSE),"") ->  | BA7: =IFERROR(VLOOKUP(AX7,Mondphasen!$G$23:$H$36,2,FALSE),"") ->  | BB7: 36 | BC7: 2026-10-04 | BD7: 46299 | BE7: 2026-10-04 | BF7: =IFERROR(VLOOKUP(BD7,Feiertage!$A$3:$B$29,2,FALSE),"") ->  | BG7: =IFERROR(VLOOKUP(BD7,Mondphasen!$G$23:$H$36,2,FALSE),"") ->  | BH7: 40 | BI7: 2026-11-04 | BJ7: 46330 | BK7: 2026-11-04 | BL7: =IFERROR(VLOOKUP(BJ7,Feiertage!$A$3:$B$29,2,FALSE),"") ->  | BM7: =IFERROR(VLOOKUP(BJ7,Mondphasen!$G$23:$H$36,2,FALSE),"") ->  | BN7: 45 | BO7: 2026-12-04 | BP7: 46360 | BQ7: 2026-12-04 | BR7: =IFERROR(VLOOKUP(BP7,Feiertage!$A$3:$B$29,2,FALSE),"") ->  | BS7: =IFERROR(VLOOKUP(BP7,Mondphasen!$G$23:$H$36,2,FALSE),"") ->  | BT7: 49
A8: 2026-01-05 | B8: 46027 | C8: 2026-01-05 | D8: =IFERROR(VLOOKUP(B8,Feiertage!$A$3:$B$29,2,FALSE),"") ->  | E8: =IFERROR(VLOOKUP(B8,Mondphasen!$G$23:$H$36,2,FALSE),"") ->  | F8: 2 | G8: 2026-02-05 | H8: 46058 | I8: 2026-02-05 | J8: =IFERROR(VLOOKUP(H8,Feiertage!$A$3:$B$29,2,FALSE),"") ->  | K8: =IFERROR(VLOOKUP(H8,Mondphasen!$G$23:$H$36,2,FALSE),"") ->  | L8: 6 | M8: 2026-03-05 | N8: 46086 | O8: 2026-03-05 | P8: =IFERROR(VLOOKUP(N8,Feiertage!$A$3:$B$29,2,FALSE),"") ->  | Q8: =IFERROR(VLOOKUP(N8,Mondphasen!$G$23:$H$36,2,FALSE),"") ->  | R8: 10 | S8: 2026-04-05 | T8: 46117 | U8: 2026-04-05 | V8: =IFERROR(VLOOKUP(T8,Feiertage!$A$3:$B$29,2,FALSE),"") -> Ostersonntag | W8: =IFERROR(VLOOKUP(T8,Mondphasen!$G$23:$H$36,2,FALSE),"") ->  | X8: 14 | Y8: 2026-05-05 | Z8: 46147 | AA8: 2026-05-05 | AB8: =IFERROR(VLOOKUP(Z8,Feiertage!$A$3:$B$29,2,FALSE),"") ->  | AC8: =IFERROR(VLOOKUP(Z8,Mondphasen!$G$23:$H$36,2,FALSE),"") ->  | AD8: 19 | AE8: 2026-06-05 | AF8: 46178 | AG8: 2026-06-05 | AH8: =IFERROR(VLOOKUP(AF8,Feiertage!$A$3:$B$29,2,FALSE),"") ->  | AI8: =IFERROR(VLOOKUP(AF8,Mondphasen!$G$23:$H$36,2,FALSE),"") ->  | AJ8: 23 | AK8: 2026-07-05 | AL8: 46208 | AM8: 2026-07-05 | AN8: =IFERROR(VLOOKUP(AL8,Feiertage!$A$3:$B$29,2,FALSE),"") ->  | AO8: =IFERROR(VLOOKUP(AL8,Mondphasen!$G$23:$H$36,2,FALSE),"") ->  | AP8: 27 | AQ8: 2026-08-05 | AR8: 46239 | AS8: 2026-08-05 | AT8: =IFERROR(VLOOKUP(AR8,Feiertage!$A$3:$B$29,2,FALSE),"") ->  | AU8: =IFERROR(VLOOKUP(AR8,Mondphasen!$G$23:$H$36,2,FALSE),"") ->  | AV8: 32 | AW8: 2026-09-05 | AX8: 46270 | AY8: 2026-09-05 | AZ8: =IFERROR(VLOOKUP(AX8,Feiertage!$A$3:$B$29,2,FALSE),"") ->  | BA8: =IFERROR(VLOOKUP(AX8,Mondphasen!$G$23:$H$36,2,FALSE),"") ->  | BB8: 36 | BC8: 2026-10-05 | BD8: 46300 | BE8: 2026-10-05 | BF8: =IFERROR(VLOOKUP(BD8,Feiertage!$A$3:$B$29,2,FALSE),"") ->  | BG8: =IFERROR(VLOOKUP(BD8,Mondphasen!$G$23:$H$36,2,FALSE),"") ->  | BH8: 41 | BI8: 2026-11-05 | BJ8: 46331 | BK8: 2026-11-05 | BL8: =IFERROR(VLOOKUP(BJ8,Feiertage!$A$3:$B$29,2,FALSE),"") ->  | BM8: =IFERROR(VLOOKUP(BJ8,Mondphasen!$G$23:$H$36,2,FALSE),"") ->  | BN8: 45 | BO8: 2026-12-05 | BP8: 46361 | BQ8: 2026-12-05 | BR8: =IFERROR(VLOOKUP(BP8,Feiertage!$A$3:$B$29,2,FALSE),"") ->  | BS8: =IFERROR(VLOOKUP(BP8,Mondphasen!$G$23:$H$36,2,FALSE),"") ->  | BT8: 49
A9: 2026-01-06 | B9: 46028 | C9: 2026-01-06 | D9: =IFERROR(VLOOKUP(B9,Feiertage!$A$3:$B$29,2,FALSE),"") -> Heilige drei Könige | E9: =IFERROR(VLOOKUP(B9,Mondphasen!$G$23:$H$36,2,FALSE),"") ->  | F9: 2 | G9: 2026-02-06 | H9: 46059 | I9: 2026-02-06 | J9: =IFERROR(VLOOKUP(H9,Feiertage!$A$3:$B$29,2,FALSE),"") ->  | K9: =IFERROR(VLOOKUP(H9,Mondphasen!$G$23:$H$36,2,FALSE),"") ->  | L9: 6 | M9: 2026-03-06 | N9: 46087 | O9: 2026-03-06 | P9: =IFERROR(VLOOKUP(N9,Feiertage!$A$3:$B$29,2,FALSE),"") ->  | Q9: =IFERROR(VLOOKUP(N9,Mondphasen!$G$23:$H$36,2,FALSE),"") ->  | R9: 10 | S9: 2026-04-06 | T9: 46118 | U9: 2026-04-06 | V9: =IFERROR(VLOOKUP(T9,Feiertage!$A$3:$B$29,2,FALSE),"") -> Ostermontag | W9: =IFERROR(VLOOKUP(T9,Mondphasen!$G$23:$H$36,2,FALSE),"") ->  | X9: 15 | Y9: 2026-05-06 | Z9: 46148 | AA9: 2026-05-06 | AB9: =IFERROR(VLOOKUP(Z9,Feiertage!$A$3:$B$29,2,FALSE),"") ->  | AC9: =IFERROR(VLOOKUP(Z9,Mondphasen!$G$23:$H$36,2,FALSE),"") ->  | AD9: 19 | AE9: 2026-06-06 | AF9: 46179 | AG9: 2026-06-06 | AH9: =IFERROR(VLOOKUP(AF9,Feiertage!$A$3:$B$29,2,FALSE),"") ->  | AI9: =IFERROR(VLOOKUP(AF9,Mondphasen!$G$23:$H$36,2,FALSE),"") ->  | AJ9: 23 | AK9: 2026-07-06 | AL9: 46209 | AM9: 2026-07-06 | AN9: =IFERROR(VLOOKUP(AL9,Feiertage!$A$3:$B$29,2,FALSE),"") ->  | AO9: =IFERROR(VLOOKUP(AL9,Mondphasen!$G$23:$H$36,2,FALSE),"") ->  | AP9: 28 | AQ9: 2026-08-06 | AR9: 46240 | AS9: 2026-08-06 | AT9: =IFERROR(VLOOKUP(AR9,Feiertage!$A$3:$B$29,2,FALSE),"") ->  | AU9: =IFERROR(VLOOKUP(AR9,Mondphasen!$G$23:$H$36,2,FALSE),"") ->  | AV9: 32 | AW9: 2026-09-06 | AX9: 46271 | AY9: 2026-09-06 | AZ9: =IFERROR(VLOOKUP(AX9,Feiertage!$A$3:$B$29,2,FALSE),"") ->  | BA9: =IFERROR(VLOOKUP(AX9,Mondphasen!$G$23:$H$36,2,FALSE),"") ->  | BB9: 36 | BC9: 2026-10-06 | BD9: 46301 | BE9: 2026-10-06 | BF9: =IFERROR(VLOOKUP(BD9,Feiertage!$A$3:$B$29,2,FALSE),"") ->  | BG9: =IFERROR(VLOOKUP(BD9,Mondphasen!$G$23:$H$36,2,FALSE),"") ->  | BH9: 41 | BI9: 2026-11-06 | BJ9: 46332 | BK9: 2026-11-06 | BL9: =IFERROR(VLOOKUP(BJ9,Feiertage!$A$3:$B$29,2,FALSE),"") ->  | BM9: =IFERROR(VLOOKUP(BJ9,Mondphasen!$G$23:$H$36,2,FALSE),"") ->  | BN9: 45 | BO9: 2026-12-06 | BP9: 46362 | BQ9: 2026-12-06 | BR9: =IFERROR(VLOOKUP(BP9,Feiertage!$A$3:$B$29,2,FALSE),"") -> Samichlaus | BS9: =IFERROR(VLOOKUP(BP9,Mondphasen!$G$23:$H$36,2,FALSE),"") ->  | BT9: 49
A10: 2026-01-07 | B10: 46029 | C10: 2026-01-07 | D10: =IFERROR(VLOOKUP(B10,Feiertage!$A$3:$B$29,2,FALSE),"") ->  | E10: =IFERROR(VLOOKUP(B10,Mondphasen!$G$23:$H$36,2,FALSE),"") ->  | F10: 2 | G10: 2026-02-07 | H10: 46060 | I10: 2026-02-07 | J10: =IFERROR(VLOOKUP(H10,Feiertage!$A$3:$B$29,2,FALSE),"") ->  | K10: =IFERROR(VLOOKUP(H10,Mondphasen!$G$23:$H$36,2,FALSE),"") ->  | L10: 6 | M10: 2026-03-07 | N10: 46088 | O10: 2026-03-07 | P10: =IFERROR(VLOOKUP(N10,Feiertage!$A$3:$B$29,2,FALSE),"") ->  | Q10: =IFERROR(VLOOKUP(N10,Mondphasen!$G$23:$H$36,2,FALSE),"") ->  | R10: 10 | S10: 2026-04-07 | T10: 46119 | U10: 2026-04-07 | V10: =IFERROR(VLOOKUP(T10,Feiertage!$A$3:$B$29,2,FALSE),"") ->  | W10: =IFERROR(VLOOKUP(T10,Mondphasen!$G$23:$H$36,2,FALSE),"") ->  | X10: 15 | Y10: 2026-05-07 | Z10: 46149 | AA10: 2026-05-07 | AB10: =IFERROR(VLOOKUP(Z10,Feiertage!$A$3:$B$29,2,FALSE),"") ->  | AC10: =IFERROR(VLOOKUP(Z10,Mondphasen!$G$23:$H$36,2,FALSE),"") ->  | AD10: 19 | AE10: 2026-06-07 | AF10: 46180 | AG10: 2026-06-07 | AH10: =IFERROR(VLOOKUP(AF10,Feiertage!$A$3:$B$29,2,FALSE),"") ->  | AI10: =IFERROR(VLOOKUP(AF10,Mondphasen!$G$23:$H$36,2,FALSE),"") ->  | AJ10: 23 | AK10: 2026-07-07 | AL10: 46210 | AM10: 2026-07-07 | AN10: =IFERROR(VLOOKUP(AL10,Feiertage!$A$3:$B$29,2,FALSE),"") ->  | AO10: =IFERROR(VLOOKUP(AL10,Mondphasen!$G$23:$H$36,2,FALSE),"") ->  | AP10: 28 | AQ10: 2026-08-07 | AR10: 46241 | AS10: 2026-08-07 | AT10: =IFERROR(VLOOKUP(AR10,Feiertage!$A$3:$B$29,2,FALSE),"") ->  | AU10: =IFERROR(VLOOKUP(AR10,Mondphasen!$G$23:$H$36,2,FALSE),"") ->  | AV10: 32 | AW10: 2026-09-07 | AX10: 46272 | AY10: 2026-09-07 | AZ10: =IFERROR(VLOOKUP(AX10,Feiertage!$A$3:$B$29,2,FALSE),"") ->  | BA10: =IFERROR(VLOOKUP(AX10,Mondphasen!$G$23:$H$36,2,FALSE),"") ->  | BB10: 37 | BC10: 2026-10-07 | BD10: 46302 | BE10: 2026-10-07 | BF10: =IFERROR(VLOOKUP(BD10,Feiertage!$A$3:$B$29,2,FALSE),"") ->  | BG10: =IFERROR(VLOOKUP(BD10,Mondphasen!$G$23:$H$36,2,FALSE),"") ->  | BH10: 41 | BI10: 2026-11-07 | BJ10: 46333 | BK10: 2026-11-07 | BL10: =IFERROR(VLOOKUP(BJ10,Feiertage!$A$3:$B$29,2,FALSE),"") ->  | BM10: =IFERROR(VLOOKUP(BJ10,Mondphasen!$G$23:$H$36,2,FALSE),"") ->  | BN10: 45 | BO10: 2026-12-07 | BP10: 46363 | BQ10: 2026-12-07 | BR10: =IFERROR(VLOOKUP(BP10,Feiertage!$A$3:$B$29,2,FALSE),"") ->  | BS10: =IFERROR(VLOOKUP(BP10,Mondphasen!$G$23:$H$36,2,FALSE),"") ->  | BT10: 50
A11: 2026-01-08 | B11: 46030 | C11: 2026-01-08 | D11: =IFERROR(VLOOKUP(B11,Feiertage!$A$3:$B$29,2,FALSE),"") ->  | E11: =IFERROR(VLOOKUP(B11,Mondphasen!$G$23:$H$36,2,FALSE),"") ->  | F11: 2 | G11: 2026-02-08 | H11: 46061 | I11: 2026-02-08 | J11: =IFERROR(VLOOKUP(H11,Feiertage!$A$3:$B$29,2,FALSE),"") ->  | K11: =IFERROR(VLOOKUP(H11,Mondphasen!$G$23:$H$36,2,FALSE),"") ->  | L11: 6 | M11: 2026-03-08 | N11: 46089 | O11: 2026-03-08 | P11: =IFERROR(VLOOKUP(N11,Feiertage!$A$3:$B$29,2,FALSE),"") ->  | Q11: =IFERROR(VLOOKUP(N11,Mondphasen!$G$23:$H$36,2,FALSE),"") ->  | R11: 10 | S11: 2026-04-08 | T11: 46120 | U11: 2026-04-08 | V11: =IFERROR(VLOOKUP(T11,Feiertage!$A$3:$B$29,2,FALSE),"") ->  | W11: =IFERROR(VLOOKUP(T11,Mondphasen!$G$23:$H$36,2,FALSE),"") ->  | X11: 15 | Y11: 2026-05-08 | Z11: 46150 | AA11: 2026-05-08 | AB11: =IFERROR(VLOOKUP(Z11,Feiertage!$A$3:$B$29,2,FALSE),"") ->  | AC11: =IFERROR(VLOOKUP(Z11,Mondphasen!$G$23:$H$36,2,FALSE),"") ->  | AD11: 19 | AE11: 2026-06-08 | AF11: 46181 | AG11: 2026-06-08 | AH11: =IFERROR(VLOOKUP(AF11,Feiertage!$A$3:$B$29,2,FALSE),"") ->  | AI11: =IFERROR(VLOOKUP(AF11,Mondphasen!$G$23:$H$36,2,FALSE),"") ->  | AJ11: 24 | AK11: 2026-07-08 | AL11: 46211 | AM11: 2026-07-08 | AN11: =IFERROR(VLOOKUP(AL11,Feiertage!$A$3:$B$29,2,FALSE),"") ->  | AO11: =IFERROR(VLOOKUP(AL11,Mondphasen!$G$23:$H$36,2,FALSE),"") ->  | AP11: 28 | AQ11: 2026-08-08 | AR11: 46242 | AS11: 2026-08-08 | AT11: =IFERROR(VLOOKUP(AR11,Feiertage!$A$3:$B$29,2,FALSE),"") ->  | AU11: =IFERROR(VLOOKUP(AR11,Mondphasen!$G$23:$H$36,2,FALSE),"") ->  | AV11: 32 | AW11: 2026-09-08 | AX11: 46273 | AY11: 2026-09-08 | AZ11: =IFERROR(VLOOKUP(AX11,Feiertage!$A$3:$B$29,2,FALSE),"") ->  | BA11: =IFERROR(VLOOKUP(AX11,Mondphasen!$G$23:$H$36,2,FALSE),"") ->  | BB11: 37 | BC11: 2026-10-08 | BD11: 46303 | BE11: 2026-10-08 | BF11: =IFERROR(VLOOKUP(BD11,Feiertage!$A$3:$B$29,2,FALSE),"") ->  | BG11: =IFERROR(VLOOKUP(BD11,Mondphasen!$G$23:$H$36,2,FALSE),"") ->  | BH11: 41 | BI11: 2026-11-08 | BJ11: 46334 | BK11: 2026-11-08 | BL11: =IFERROR(VLOOKUP(BJ11,Feiertage!$A$3:$B$29,2,FALSE),"") ->  | BM11: =IFERROR(VLOOKUP(BJ11,Mondphasen!$G$23:$H$36,2,FALSE),"") ->  | BN11: 45 | BO11: 2026-12-08 | BP11: 46364 | BQ11: 2026-12-08 | BR11: =IFERROR(VLOOKUP(BP11,Feiertage!$A$3:$B$29,2,FALSE),"") ->  | BS11: =IFERROR(VLOOKUP(BP11,Mondphasen!$G$23:$H$36,2,FALSE),"") ->  | BT11: 50
A12: 2026-01-09 | B12: 46031 | C12: 2026-01-09 | D12: =IFERROR(VLOOKUP(B12,Feiertage!$A$3:$B$29,2,FALSE),"") ->  | E12: =IFERROR(VLOOKUP(B12,Mondphasen!$G$23:$H$36,2,FALSE),"") ->  | F12: 2 | G12: 2026-02-09 | H12: 46062 | I12: 2026-02-09 | J12: =IFERROR(VLOOKUP(H12,Feiertage!$A$3:$B$29,2,FALSE),"") ->  | K12: =IFERROR(VLOOKUP(H12,Mondphasen!$G$23:$H$36,2,FALSE),"") ->  | L12: 7 | M12: 2026-03-09 | N12: 46090 | O12: 2026-03-09 | P12: =IFERROR(VLOOKUP(N12,Feiertage!$A$3:$B$29,2,FALSE),"") ->  | Q12: =IFERROR(VLOOKUP(N12,Mondphasen!$G$23:$H$36,2,FALSE),"") ->  | R12: 11 | S12: 2026-04-09 | T12: 46121 | U12: 2026-04-09 | V12: =IFERROR(VLOOKUP(T12,Feiertage!$A$3:$B$29,2,FALSE),"") ->  | W12: =IFERROR(VLOOKUP(T12,Mondphasen!$G$23:$H$36,2,FALSE),"") ->  | X12: 15 | Y12: 2026-05-09 | Z12: 46151 | AA12: 2026-05-09 | AB12: =IFERROR(VLOOKUP(Z12,Feiertage!$A$3:$B$29,2,FALSE),"") ->  | AC12: =IFERROR(VLOOKUP(Z12,Mondphasen!$G$23:$H$36,2,FALSE),"") ->  | AD12: 19 | AE12: 2026-06-09 | AF12: 46182 | AG12: 2026-06-09 | AH12: =IFERROR(VLOOKUP(AF12,Feiertage!$A$3:$B$29,2,FALSE),"") ->  | AI12: =IFERROR(VLOOKUP(AF12,Mondphasen!$G$23:$H$36,2,FALSE),"") ->  | AJ12: 24 | AK12: 2026-07-09 | AL12: 46212 | AM12: 2026-07-09 | AN12: =IFERROR(VLOOKUP(AL12,Feiertage!$A$3:$B$29,2,FALSE),"") ->  | AO12: =IFERROR(VLOOKUP(AL12,Mondphasen!$G$23:$H$36,2,FALSE),"") ->  | AP12: 28 | AQ12: 2026-08-09 | AR12: 46243 | AS12: 2026-08-09 | AT12: =IFERROR(VLOOKUP(AR12,Feiertage!$A$3:$B$29,2,FALSE),"") ->  | AU12: =IFERROR(VLOOKUP(AR12,Mondphasen!$G$23:$H$36,2,FALSE),"") ->  | AV12: 32 | AW12: 2026-09-09 | AX12: 46274 | AY12: 2026-09-09 | AZ12: =IFERROR(VLOOKUP(AX12,Feiertage!$A$3:$B$29,2,FALSE),"") ->  | BA12: =IFERROR(VLOOKUP(AX12,Mondphasen!$G$23:$H$36,2,FALSE),"") ->  | BB12: 37 | BC12: 2026-10-09 | BD12: 46304 | BE12: 2026-10-09 | BF12: =IFERROR(VLOOKUP(BD12,Feiertage!$A$3:$B$29,2,FALSE),"") ->  | BG12: =IFERROR(VLOOKUP(BD12,Mondphasen!$G$23:$H$36,2,FALSE),"") ->  | BH12: 41 | BI12: 2026-11-09 | BJ12: 46335 | BK12: 2026-11-09 | BL12: =IFERROR(VLOOKUP(BJ12,Feiertage!$A$3:$B$29,2,FALSE),"") ->  | BM12: =IFERROR(VLOOKUP(BJ12,Mondphasen!$G$23:$H$36,2,FALSE),"") ->  | BN12: 46 | BO12: 2026-12-09 | BP12: 46365 | BQ12: 2026-12-09 | BR12: =IFERROR(VLOOKUP(BP12,Feiertage!$A$3:$B$29,2,FALSE),"") ->  | BS12: =IFERROR(VLOOKUP(BP12,Mondphasen!$G$23:$H$36,2,FALSE),"") ->  | BT12: 50
A13: 2026-01-10 | B13: 46032 | C13: 2026-01-10 | D13: =IFERROR(VLOOKUP(B13,Feiertage!$A$3:$B$29,2,FALSE),"") ->  | E13: =IFERROR(VLOOKUP(B13,Mondphasen!$G$23:$H$36,2,FALSE),"") ->  | F13: 2 | G13: 2026-02-10 | H13: 46063 | I13: 2026-02-10 | J13: =IFERROR(VLOOKUP(H13,Feiertage!$A$3:$B$29,2,FALSE),"") ->  | K13: =IFERROR(VLOOKUP(H13,Mondphasen!$G$23:$H$36,2,FALSE),"") ->  | L13: 7 | M13: 2026-03-10 | N13: 46091 | O13: 2026-03-10 | P13: =IFERROR(VLOOKUP(N13,Feiertage!$A$3:$B$29,2,FALSE),"") ->  | Q13: =IFERROR(VLOOKUP(N13,Mondphasen!$G$23:$H$36,2,FALSE),"") ->  | R13: 11 | S13: 2026-04-10 | T13: 46122 | U13: 2026-04-10 | V13: =IFERROR(VLOOKUP(T13,Feiertage!$A$3:$B$29,2,FALSE),"") ->  | W13: =IFERROR(VLOOKUP(T13,Mondphasen!$G$23:$H$36,2,FALSE),"") ->  | X13: 15 | Y13: 2026-05-10 | Z13: 46152 | AA13: 2026-05-10 | AB13: =IFERROR(VLOOKUP(Z13,Feiertage!$A$3:$B$29,2,FALSE),"") -> Muttertag | AC13: =IFERROR(VLOOKUP(Z13,Mondphasen!$G$23:$H$36,2,FALSE),"") ->  | AD13: 19 | AE13: 2026-06-10 | AF13: 46183 | AG13: 2026-06-10 | AH13: =IFERROR(VLOOKUP(AF13,Feiertage!$A$3:$B$29,2,FALSE),"") ->  | AI13: =IFERROR(VLOOKUP(AF13,Mondphasen!$G$23:$H$36,2,FALSE),"") ->  | AJ13: 24 | AK13: 2026-07-10 | AL13: 46213 | AM13: 2026-07-10 | AN13: =IFERROR(VLOOKUP(AL13,Feiertage!$A$3:$B$29,2,FALSE),"") ->  | AO13: =IFERROR(VLOOKUP(AL13,Mondphasen!$G$23:$H$36,2,FALSE),"") ->  | AP13: 28 | AQ13: 2026-08-10 | AR13: 46244 | AS13: 2026-08-10 | AT13: =IFERROR(VLOOKUP(AR13,Feiertage!$A$3:$B$29,2,FALSE),"") ->  | AU13: =IFERROR(VLOOKUP(AR13,Mondphasen!$G$23:$H$36,2,FALSE),"") ->  | AV13: 33 | AW13: 2026-09-10 | AX13: 46275 | AY13: 2026-09-10 | AZ13: =IFERROR(VLOOKUP(AX13,Feiertage!$A$3:$B$29,2,FALSE),"") ->  | BA13: =IFERROR(VLOOKUP(AX13,Mondphasen!$G$23:$H$36,2,FALSE),"") ->  | BB13: 37 | BC13: 2026-10-10 | BD13: 46305 | BE13: 2026-10-10 | BF13: =IFERROR(VLOOKUP(BD13,Feiertage!$A$3:$B$29,2,FALSE),"") ->  | BG13: =IFERROR(VLOOKUP(BD13,Mondphasen!$G$23:$H$36,2,FALSE),"") ->  | BH13: 41 | BI13: 2026-11-10 | BJ13: 46336 | BK13: 2026-11-10 | BL13: =IFERROR(VLOOKUP(BJ13,Feiertage!$A$3:$B$29,2,FALSE),"") ->  | BM13: =IFERROR(VLOOKUP(BJ13,Mondphasen!$G$23:$H$36,2,FALSE),"") ->  | BN13: 46 | BO13: 2026-12-10 | BP13: 46366 | BQ13: 2026-12-10 | BR13: =IFERROR(VLOOKUP(BP13,Feiertage!$A$3:$B$29,2,FALSE),"") ->  | BS13: =IFERROR(VLOOKUP(BP13,Mondphasen!$G$23:$H$36,2,FALSE),"") ->  | BT13: 50
A14: 2026-01-11 | B14: 46033 | C14: 2026-01-11 | D14: =IFERROR(VLOOKUP(B14,Feiertage!$A$3:$B$29,2,FALSE),"") ->  | E14: =IFERROR(VLOOKUP(B14,Mondphasen!$G$23:$H$36,2,FALSE),"") ->  | F14: 2 | G14: 2026-02-11 | H14: 46064 | I14: 2026-02-11 | J14: =IFERROR(VLOOKUP(H14,Feiertage!$A$3:$B$29,2,FALSE),"") ->  | K14: =IFERROR(VLOOKUP(H14,Mondphasen!$G$23:$H$36,2,FALSE),"") ->  | L14: 7 | M14: 2026-03-11 | N14: 46092 | O14: 2026-03-11 | P14: =IFERROR(VLOOKUP(N14,Feiertage!$A$3:$B$29,2,FALSE),"") ->  | Q14: =IFERROR(VLOOKUP(N14,Mondphasen!$G$23:$H$36,2,FALSE),"") ->  | R14: 11 | S14: 2026-04-11 | T14: 46123 | U14: 2026-04-11 | V14: =IFERROR(VLOOKUP(T14,Feiertage!$A$3:$B$29,2,FALSE),"") ->  | W14: =IFERROR(VLOOKUP(T14,Mondphasen!$G$23:$H$36,2,FALSE),"") ->  | X14: 15 | Y14: 2026-05-11 | Z14: 46153 | AA14: 2026-05-11 | AB14: =IFERROR(VLOOKUP(Z14,Feiertage!$A$3:$B$29,2,FALSE),"") ->  | AC14: =IFERROR(VLOOKUP(Z14,Mondphasen!$G$23:$H$36,2,FALSE),"") ->  | AD14: 20 | AE14: 2026-06-11 | AF14: 46184 | AG14: 2026-06-11 | AH14: =IFERROR(VLOOKUP(AF14,Feiertage!$A$3:$B$29,2,FALSE),"") ->  | AI14: =IFERROR(VLOOKUP(AF14,Mondphasen!$G$23:$H$36,2,FALSE),"") ->  | AJ14: 24 | AK14: 2026-07-11 | AL14: 46214 | AM14: 2026-07-11 | AN14: =IFERROR(VLOOKUP(AL14,Feiertage!$A$3:$B$29,2,FALSE),"") ->  | AO14: =IFERROR(VLOOKUP(AL14,Mondphasen!$G$23:$H$36,2,FALSE),"") ->  | AP14: 28 | AQ14: 2026-08-11 | AR14: 46245 | AS14: 2026-08-11 | AT14: =IFERROR(VLOOKUP(AR14,Feiertage!$A$3:$B$29,2,FALSE),"") ->  | AU14: =IFERROR(VLOOKUP(AR14,Mondphasen!$G$23:$H$36,2,FALSE),"") ->  | AV14: 33 | AW14: 2026-09-11 | AX14: 46276 | AY14: 2026-09-11 | AZ14: =IFERROR(VLOOKUP(AX14,Feiertage!$A$3:$B$29,2,FALSE),"") ->  | BA14: =IFERROR(VLOOKUP(AX14,Mondphasen!$G$23:$H$36,2,FALSE),"") ->  | BB14: 37 | BC14: 2026-10-11 | BD14: 46306 | BE14: 2026-10-11 | BF14: =IFERROR(VLOOKUP(BD14,Feiertage!$A$3:$B$29,2,FALSE),"") ->  | BG14: =IFERROR(VLOOKUP(BD14,Mondphasen!$G$23:$H$36,2,FALSE),"") ->  | BH14: 41 | BI14: 2026-11-11 | BJ14: 46337 | BK14: 2026-11-11 | BL14: =IFERROR(VLOOKUP(BJ14,Feiertage!$A$3:$B$29,2,FALSE),"") ->  | BM14: =IFERROR(VLOOKUP(BJ14,Mondphasen!$G$23:$H$36,2,FALSE),"") ->  | BN14: 46 | BO14: 2026-12-11 | BP14: 46367 | BQ14: 2026-12-11 | BR14: =IFERROR(VLOOKUP(BP14,Feiertage!$A$3:$B$29,2,FALSE),"") ->  | BS14: =IFERROR(VLOOKUP(BP14,Mondphasen!$G$23:$H$36,2,FALSE),"") ->  | BT14: 50
A15: 2026-01-12 | B15: 46034 | C15: 2026-01-12 | D15: =IFERROR(VLOOKUP(B15,Feiertage!$A$3:$B$29,2,FALSE),"") ->  | E15: =IFERROR(VLOOKUP(B15,Mondphasen!$G$23:$H$36,2,FALSE),"") ->  | F15: 3 | G15: 2026-02-12 | H15: 46065 | I15: 2026-02-12 | J15: =IFERROR(VLOOKUP(H15,Feiertage!$A$3:$B$29,2,FALSE),"") ->  | K15: =IFERROR(VLOOKUP(H15,Mondphasen!$G$23:$H$36,2,FALSE),"") ->  | L15: 7 | M15: 2026-03-12 | N15: 46093 | O15: 2026-03-12 | P15: =IFERROR(VLOOKUP(N15,Feiertage!$A$3:$B$29,2,FALSE),"") ->  | Q15: =IFERROR(VLOOKUP(N15,Mondphasen!$G$23:$H$36,2,FALSE),"") ->  | R15: 11 | S15: 2026-04-12 | T15: 46124 | U15: 2026-04-12 | V15: =IFERROR(VLOOKUP(T15,Feiertage!$A$3:$B$29,2,FALSE),"") ->  | W15: =IFERROR(VLOOKUP(T15,Mondphasen!$G$23:$H$36,2,FALSE),"") ->  | X15: 15 | Y15: 2026-05-12 | Z15: 46154 | AA15: 2026-05-12 | AB15: =IFERROR(VLOOKUP(Z15,Feiertage!$A$3:$B$29,2,FALSE),"") ->  | AC15: =IFERROR(VLOOKUP(Z15,Mondphasen!$G$23:$H$36,2,FALSE),"") ->  | AD15: 20 | AE15: 2026-06-12 | AF15: 46185 | AG15: 2026-06-12 | AH15: =IFERROR(VLOOKUP(AF15,Feiertage!$A$3:$B$29,2,FALSE),"") ->  | AI15: =IFERROR(VLOOKUP(AF15,Mondphasen!$G$23:$H$36,2,FALSE),"") ->  | AJ15: 24 | AK15: 2026-07-12 | AL15: 46215 | AM15: 2026-07-12 | AN15: =IFERROR(VLOOKUP(AL15,Feiertage!$A$3:$B$29,2,FALSE),"") ->  | AO15: =IFERROR(VLOOKUP(AL15,Mondphasen!$G$23:$H$36,2,FALSE),"") ->  | AP15: 28 | AQ15: 2026-08-12 | AR15: 46246 | AS15: 2026-08-12 | AT15: =IFERROR(VLOOKUP(AR15,Feiertage!$A$3:$B$29,2,FALSE),"") ->  | AU15: =IFERROR(VLOOKUP(AR15,Mondphasen!$G$23:$H$36,2,FALSE),"") ->  | AV15: 33 | AW15: 2026-09-12 | AX15: 46277 | AY15: 2026-09-12 | AZ15: =IFERROR(VLOOKUP(AX15,Feiertage!$A$3:$B$29,2,FALSE),"") ->  | BA15: =IFERROR(VLOOKUP(AX15,Mondphasen!$G$23:$H$36,2,FALSE),"") ->  | BB15: 37 | BC15: 2026-10-12 | BD15: 46307 | BE15: 2026-10-12 | BF15: =IFERROR(VLOOKUP(BD15,Feiertage!$A$3:$B$29,2,FALSE),"") ->  | BG15: =IFERROR(VLOOKUP(BD15,Mondphasen!$G$23:$H$36,2,FALSE),"") ->  | BH15: 42 | BI15: 2026-11-12 | BJ15: 46338 | BK15: 2026-11-12 | BL15: =IFERROR(VLOOKUP(BJ15,Feiertage!$A$3:$B$29,2,FALSE),"") ->  | BM15: =IFERROR(VLOOKUP(BJ15,Mondphasen!$G$23:$H$36,2,FALSE),"") ->  | BN15: 46 | BO15: 2026-12-12 | BP15: 46368 | BQ15: 2026-12-12 | BR15: =IFERROR(VLOOKUP(BP15,Feiertage!$A$3:$B$29,2,FALSE),"") ->  | BS15: =IFERROR(VLOOKUP(BP15,Mondphasen!$G$23:$H$36,2,FALSE),"") ->  | BT15: 50
A16: 2026-01-13 | B16: 46035 | C16: 2026-01-13 | D16: =IFERROR(VLOOKUP(B16,Feiertage!$A$3:$B$29,2,FALSE),"") ->  | E16: =IFERROR(VLOOKUP(B16,Mondphasen!$G$23:$H$36,2,FALSE),"") ->  | F16: 3 | G16: 2026-02-13 | H16: 46066 | I16: 2026-02-13 | J16: =IFERROR(VLOOKUP(H16,Feiertage!$A$3:$B$29,2,FALSE),"") ->  | K16: =IFERROR(VLOOKUP(H16,Mondphasen!$G$23:$H$36,2,FALSE),"") ->  | L16: 7 | M16: 2026-03-13 | N16: 46094 | O16: 2026-03-13 | P16: =IFERROR(VLOOKUP(N16,Feiertage!$A$3:$B$29,2,FALSE),"") ->  | Q16: =IFERROR(VLOOKUP(N16,Mondphasen!$G$23:$H$36,2,FALSE),"") ->  | R16: 11 | S16: 2026-04-13 | T16: 46125 | U16: 2026-04-13 | V16: =IFERROR(VLOOKUP(T16,Feiertage!$A$3:$B$29,2,FALSE),"") ->  | W16: =IFERROR(VLOOKUP(T16,Mondphasen!$G$23:$H$36,2,FALSE),"") ->  | X16: 16 | Y16: 2026-05-13 | Z16: 46155 | AA16: 2026-05-13 | AB16: =IFERROR(VLOOKUP(Z16,Feiertage!$A$3:$B$29,2,FALSE),"") ->  | AC16: =IFERROR(VLOOKUP(Z16,Mondphasen!$G$23:$H$36,2,FALSE),"") ->  | AD16: 20 | AE16: 2026-06-13 | AF16: 46186 | AG16: 2026-06-13 | AH16: =IFERROR(VLOOKUP(AF16,Feiertage!$A$3:$B$29,2,FALSE),"") ->  | AI16: =IFERROR(VLOOKUP(AF16,Mondphasen!$G$23:$H$36,2,FALSE),"") ->  | AJ16: 24 | AK16: 2026-07-13 | AL16: 46216 | AM16: 2026-07-13 | AN16: =IFERROR(VLOOKUP(AL16,Feiertage!$A$3:$B$29,2,FALSE),"") ->  | AO16: =IFERROR(VLOOKUP(AL16,Mondphasen!$G$23:$H$36,2,FALSE),"") ->  | AP16: 29 | AQ16: 2026-08-13 | AR16: 46247 | AS16: 2026-08-13 | AT16: =IFERROR(VLOOKUP(AR16,Feiertage!$A$3:$B$29,2,FALSE),"") ->  | AU16: =IFERROR(VLOOKUP(AR16,Mondphasen!$G$23:$H$36,2,FALSE),"") ->  | AV16: 33 | AW16: 2026-09-13 | AX16: 46278 | AY16: 2026-09-13 | AZ16: =IFERROR(VLOOKUP(AX16,Feiertage!$A$3:$B$29,2,FALSE),"") ->  | BA16: =IFERROR(VLOOKUP(AX16,Mondphasen!$G$23:$H$36,2,FALSE),"") ->  | BB16: 37 | BC16: 2026-10-13 | BD16: 46308 | BE16: 2026-10-13 | BF16: =IFERROR(VLOOKUP(BD16,Feiertage!$A$3:$B$29,2,FALSE),"") ->  | BG16: =IFERROR(VLOOKUP(BD16,Mondphasen!$G$23:$H$36,2,FALSE),"") ->  | BH16: 42 | BI16: 2026-11-13 | BJ16: 46339 | BK16: 2026-11-13 | BL16: =IFERROR(VLOOKUP(BJ16,Feiertage!$A$3:$B$29,2,FALSE),"") ->  | BM16: =IFERROR(VLOOKUP(BJ16,Mondphasen!$G$23:$H$36,2,FALSE),"") ->  | BN16: 46 | BO16: 2026-12-13 | BP16: 46369 | BQ16: 2026-12-13 | BR16: =IFERROR(VLOOKUP(BP16,Feiertage!$A$3:$B$29,2,FALSE),"") ->  | BS16: =IFERROR(VLOOKUP(BP16,Mondphasen!$G$23:$H$36,2,FALSE),"") ->  | BT16: 50
A17: 2026-01-14 | B17: 46036 | C17: 2026-01-14 | D17: =IFERROR(VLOOKUP(B17,Feiertage!$A$3:$B$29,2,FALSE),"") ->  | E17: =IFERROR(VLOOKUP(B17,Mondphasen!$G$23:$H$36,2,FALSE),"") ->  | F17: 3 | G17: 2026-02-14 | H17: 46067 | I17: 2026-02-14 | J17: =IFERROR(VLOOKUP(H17,Feiertage!$A$3:$B$29,2,FALSE),"") ->  | K17: =IFERROR(VLOOKUP(H17,Mondphasen!$G$23:$H$36,2,FALSE),"") ->  | L17: 7 | M17: 2026-03-14 | N17: 46095 | O17: 2026-03-14 | P17: =IFERROR(VLOOKUP(N17,Feiertage!$A$3:$B$29,2,FALSE),"") ->  | Q17: =IFERROR(VLOOKUP(N17,Mondphasen!$G$23:$H$36,2,FALSE),"") ->  | R17: 11 | S17: 2026-04-14 | T17: 46126 | U17: 2026-04-14 | V17: =IFERROR(VLOOKUP(T17,Feiertage!$A$3:$B$29,2,FALSE),"") ->  | W17: =IFERROR(VLOOKUP(T17,Mondphasen!$G$23:$H$36,2,FALSE),"") ->  | X17: 16 | Y17: 2026-05-14 | Z17: 46156 | AA17: 2026-05-14 | AB17: =IFERROR(VLOOKUP(Z17,Feiertage!$A$3:$B$29,2,FALSE),"") -> Auffahrt | AC17: =IFERROR(VLOOKUP(Z17,Mondphasen!$G$23:$H$36,2,FALSE),"") ->  | AD17: 20 | AE17: 2026-06-14 | AF17: 46187 | AG17: 2026-06-14 | AH17: =IFERROR(VLOOKUP(AF17,Feiertage!$A$3:$B$29,2,FALSE),"") ->  | AI17: =IFERROR(VLOOKUP(AF17,Mondphasen!$G$23:$H$36,2,FALSE),"") ->  | AJ17: 24 | AK17: 2026-07-14 | AL17: 46217 | AM17: 2026-07-14 | AN17: =IFERROR(VLOOKUP(AL17,Feiertage!$A$3:$B$29,2,FALSE),"") ->  | AO17: =IFERROR(VLOOKUP(AL17,Mondphasen!$G$23:$H$36,2,FALSE),"") ->  | AP17: 29 | AQ17: 2026-08-14 | AR17: 46248 | AS17: 2026-08-14 | AT17: =IFERROR(VLOOKUP(AR17,Feiertage!$A$3:$B$29,2,FALSE),"") ->  | AU17: =IFERROR(VLOOKUP(AR17,Mondphasen!$G$23:$H$36,2,FALSE),"") ->  | AV17: 33 | AW17: 2026-09-14 | AX17: 46279 | AY17: 2026-09-14 | AZ17: =IFERROR(VLOOKUP(AX17,Feiertage!$A$3:$B$29,2,FALSE),"") ->  | BA17: =IFERROR(VLOOKUP(AX17,Mondphasen!$G$23:$H$36,2,FALSE),"") ->  | BB17: 38 | BC17: 2026-10-14 | BD17: 46309 | BE17: 2026-10-14 | BF17: =IFERROR(VLOOKUP(BD17,Feiertage!$A$3:$B$29,2,FALSE),"") ->  | BG17: =IFERROR(VLOOKUP(BD17,Mondphasen!$G$23:$H$36,2,FALSE),"") ->  | BH17: 42 | BI17: 2026-11-14 | BJ17: 46340 | BK17: 2026-11-14 | BL17: =IFERROR(VLOOKUP(BJ17,Feiertage!$A$3:$B$29,2,FALSE),"") ->  | BM17: =IFERROR(VLOOKUP(BJ17,Mondphasen!$G$23:$H$36,2,FALSE),"") ->  | BN17: 46 | BO17: 2026-12-14 | BP17: 46370 | BQ17: 2026-12-14 | BR17: =IFERROR(VLOOKUP(BP17,Feiertage!$A$3:$B$29,2,FALSE),"") ->  | BS17: =IFERROR(VLOOKUP(BP17,Mondphasen!$G$23:$H$36,2,FALSE),"") ->  | BT17: 51
A18: 2026-01-15 | B18: 46037 | C18: 2026-01-15 | D18: =IFERROR(VLOOKUP(B18,Feiertage!$A$3:$B$29,2,FALSE),"") ->  | E18: =IFERROR(VLOOKUP(B18,Mondphasen!$G$23:$H$36,2,FALSE),"") ->  | F18: 3 | G18: 2026-02-15 | H18: 46068 | I18: 2026-02-15 | J18: =IFERROR(VLOOKUP(H18,Feiertage!$A$3:$B$29,2,FALSE),"") ->  | K18: =IFERROR(VLOOKUP(H18,Mondphasen!$G$23:$H$36,2,FALSE),"") ->  | L18: 7 | M18: 2026-03-15 | N18: 46096 | O18: 2026-03-15 | P18: =IFERROR(VLOOKUP(N18,Feiertage!$A$3:$B$29,2,FALSE),"") ->  | Q18: =IFERROR(VLOOKUP(N18,Mondphasen!$G$23:$H$36,2,FALSE),"") ->  | R18: 11 | S18: 2026-04-15 | T18: 46127 | U18: 2026-04-15 | V18: =IFERROR(VLOOKUP(T18,Feiertage!$A$3:$B$29,2,FALSE),"") ->  | W18: =IFERROR(VLOOKUP(T18,Mondphasen!$G$23:$H$36,2,FALSE),"") ->  | X18: 16 | Y18: 2026-05-15 | Z18: 46157 | AA18: 2026-05-15 | AB18: =IFERROR(VLOOKUP(Z18,Feiertage!$A$3:$B$29,2,FALSE),"") ->  | AC18: =IFERROR(VLOOKUP(Z18,Mondphasen!$G$23:$H$36,2,FALSE),"") ->  | AD18: 20 | AE18: 2026-06-15 | AF18: 46188 | AG18: 2026-06-15 | AH18: =IFERROR(VLOOKUP(AF18,Feiertage!$A$3:$B$29,2,FALSE),"") ->  | AI18: =IFERROR(VLOOKUP(AF18,Mondphasen!$G$23:$H$36,2,FALSE),"") ->  | AJ18: 25 | AK18: 2026-07-15 | AL18: 46218 | AM18: 2026-07-15 | AN18: =IFERROR(VLOOKUP(AL18,Feiertage!$A$3:$B$29,2,FALSE),"") ->  | AO18: =IFERROR(VLOOKUP(AL18,Mondphasen!$G$23:$H$36,2,FALSE),"") ->  | AP18: 29 | AQ18: 2026-08-15 | AR18: 46249 | AS18: 2026-08-15 | AT18: =IFERROR(VLOOKUP(AR18,Feiertage!$A$3:$B$29,2,FALSE),"") -> Maria-Himmelfahrt | AU18: =IFERROR(VLOOKUP(AR18,Mondphasen!$G$23:$H$36,2,FALSE),"") ->  | AV18: 33 | AW18: 2026-09-15 | AX18: 46280 | AY18: 2026-09-15 | AZ18: =IFERROR(VLOOKUP(AX18,Feiertage!$A$3:$B$29,2,FALSE),"") ->  | BA18: =IFERROR(VLOOKUP(AX18,Mondphasen!$G$23:$H$36,2,FALSE),"") ->  | BB18: 38 | BC18: 2026-10-15 | BD18: 46310 | BE18: 2026-10-15 | BF18: =IFERROR(VLOOKUP(BD18,Feiertage!$A$3:$B$29,2,FALSE),"") ->  | BG18: =IFERROR(VLOOKUP(BD18,Mondphasen!$G$23:$H$36,2,FALSE),"") ->  | BH18: 42 | BI18: 2026-11-15 | BJ18: 46341 | BK18: 2026-11-15 | BL18: =IFERROR(VLOOKUP(BJ18,Feiertage!$A$3:$B$29,2,FALSE),"") ->  | BM18: =IFERROR(VLOOKUP(BJ18,Mondphasen!$G$23:$H$36,2,FALSE),"") ->  | BN18: 46 | BO18: 2026-12-15 | BP18: 46371 | BQ18: 2026-12-15 | BR18: =IFERROR(VLOOKUP(BP18,Feiertage!$A$3:$B$29,2,FALSE),"") ->  | BS18: =IFERROR(VLOOKUP(BP18,Mondphasen!$G$23:$H$36,2,FALSE),"") ->  | BT18: 51
A19: 2026-01-16 | B19: 46038 | C19: 2026-01-16 | D19: =IFERROR(VLOOKUP(B19,Feiertage!$A$3:$B$29,2,FALSE),"") ->  | E19: =IFERROR(VLOOKUP(B19,Mondphasen!$G$23:$H$36,2,FALSE),"") ->  | F19: 3 | G19: 2026-02-16 | H19: 46069 | I19: 2026-02-16 | J19: =IFERROR(VLOOKUP(H19,Feiertage!$A$3:$B$29,2,FALSE),"") -> Fasnacht-Montag | K19: =IFERROR(VLOOKUP(H19,Mondphasen!$G$23:$H$36,2,FALSE),"") ->  | L19: 8 | M19: 2026-03-16 | N19: 46097 | O19: 2026-03-16 | P19: =IFERROR(VLOOKUP(N19,Feiertage!$A$3:$B$29,2,FALSE),"") ->  | Q19: =IFERROR(VLOOKUP(N19,Mondphasen!$G$23:$H$36,2,FALSE),"") ->  | R19: 12 | S19: 2026-04-16 | T19: 46128 | U19: 2026-04-16 | V19: =IFERROR(VLOOKUP(T19,Feiertage!$A$3:$B$29,2,FALSE),"") ->  | W19: =IFERROR(VLOOKUP(T19,Mondphasen!$G$23:$H$36,2,FALSE),"") ->  | X19: 16 | Y19: 2026-05-16 | Z19: 46158 | AA19: 2026-05-16 | AB19: =IFERROR(VLOOKUP(Z19,Feiertage!$A$3:$B$29,2,FALSE),"") ->  | AC19: =IFERROR(VLOOKUP(Z19,Mondphasen!$G$23:$H$36,2,FALSE),"") ->  | AD19: 20 | AE19: 2026-06-16 | AF19: 46189 | AG19: 2026-06-16 | AH19: =IFERROR(VLOOKUP(AF19,Feiertage!$A$3:$B$29,2,FALSE),"") ->  | AI19: =IFERROR(VLOOKUP(AF19,Mondphasen!$G$23:$H$36,2,FALSE),"") ->  | AJ19: 25 | AK19: 2026-07-16 | AL19: 46219 | AM19: 2026-07-16 | AN19: =IFERROR(VLOOKUP(AL19,Feiertage!$A$3:$B$29,2,FALSE),"") ->  | AO19: =IFERROR(VLOOKUP(AL19,Mondphasen!$G$23:$H$36,2,FALSE),"") ->  | AP19: 29 | AQ19: 2026-08-16 | AR19: 46250 | AS19: 2026-08-16 | AT19: =IFERROR(VLOOKUP(AR19,Feiertage!$A$3:$B$29,2,FALSE),"") ->  | AU19: =IFERROR(VLOOKUP(AR19,Mondphasen!$G$23:$H$36,2,FALSE),"") ->  | AV19: 33 | AW19: 2026-09-16 | AX19: 46281 | AY19: 2026-09-16 | AZ19: =IFERROR(VLOOKUP(AX19,Feiertage!$A$3:$B$29,2,FALSE),"") ->  | BA19: =IFERROR(VLOOKUP(AX19,Mondphasen!$G$23:$H$36,2,FALSE),"") ->  | BB19: 38 | BC19: 2026-10-16 | BD19: 46311 | BE19: 2026-10-16 | BF19: =IFERROR(VLOOKUP(BD19,Feiertage!$A$3:$B$29,2,FALSE),"") ->  | BG19: =IFERROR(VLOOKUP(BD19,Mondphasen!$G$23:$H$36,2,FALSE),"") ->  | BH19: 42 | BI19: 2026-11-16 | BJ19: 46342 | BK19: 2026-11-16 | BL19: =IFERROR(VLOOKUP(BJ19,Feiertage!$A$3:$B$29,2,FALSE),"") ->  | BM19: =IFERROR(VLOOKUP(BJ19,Mondphasen!$G$23:$H$36,2,FALSE),"") ->  | BN19: 47 | BO19: 2026-12-16 | BP19: 46372 | BQ19: 2026-12-16 | BR19: =IFERROR(VLOOKUP(BP19,Feiertage!$A$3:$B$29,2,FALSE),"") ->  | BS19: =IFERROR(VLOOKUP(BP19,Mondphasen!$G$23:$H$36,2,FALSE),"") ->  | BT19: 51
A20: 2026-01-17 | B20: 46039 | C20: 2026-01-17 | D20: =IFERROR(VLOOKUP(B20,Feiertage!$A$3:$B$29,2,FALSE),"") ->  | E20: =IFERROR(VLOOKUP(B20,Mondphasen!$G$23:$H$36,2,FALSE),"") ->  | F20: 3 | G20: 2026-02-17 | H20: 46070 | I20: 2026-02-17 | J20: =IFERROR(VLOOKUP(H20,Feiertage!$A$3:$B$29,2,FALSE),"") -> Fasnacht-Dienstag | K20: =IFERROR(VLOOKUP(H20,Mondphasen!$G$23:$H$36,2,FALSE),"") ->  | L20: 8 | M20: 2026-03-17 | N20: 46098 | O20: 2026-03-17 | P20: =IFERROR(VLOOKUP(N20,Feiertage!$A$3:$B$29,2,FALSE),"") ->  | Q20: =IFERROR(VLOOKUP(N20,Mondphasen!$G$23:$H$36,2,FALSE),"") ->  | R20: 12 | S20: 2026-04-17 | T20: 46129 | U20: 2026-04-17 | V20: =IFERROR(VLOOKUP(T20,Feiertage!$A$3:$B$29,2,FALSE),"") ->  | W20: =IFERROR(VLOOKUP(T20,Mondphasen!$G$23:$H$36,2,FALSE),"") ->  | X20: 16 | Y20: 2026-05-17 | Z20: 46159 | AA20: 2026-05-17 | AB20: =IFERROR(VLOOKUP(Z20,Feiertage!$A$3:$B$29,2,FALSE),"") ->  | AC20: =IFERROR(VLOOKUP(Z20,Mondphasen!$G$23:$H$36,2,FALSE),"") ->  | AD20: 20 | AE20: 2026-06-17 | AF20: 46190 | AG20: 2026-06-17 | AH20: =IFERROR(VLOOKUP(AF20,Feiertage!$A$3:$B$29,2,FALSE),"") ->  | AI20: =IFERROR(VLOOKUP(AF20,Mondphasen!$G$23:$H$36,2,FALSE),"") ->  | AJ20: 25 | AK20: 2026-07-17 | AL20: 46220 | AM20: 2026-07-17 | AN20: =IFERROR(VLOOKUP(AL20,Feiertage!$A$3:$B$29,2,FALSE),"") ->  | AO20: =IFERROR(VLOOKUP(AL20,Mondphasen!$G$23:$H$36,2,FALSE),"") ->  | AP20: 29 | AQ20: 2026-08-17 | AR20: 46251 | AS20: 2026-08-17 | AT20: =IFERROR(VLOOKUP(AR20,Feiertage!$A$3:$B$29,2,FALSE),"") ->  | AU20: =IFERROR(VLOOKUP(AR20,Mondphasen!$G$23:$H$36,2,FALSE),"") ->  | AV20: 34 | AW20: 2026-09-17 | AX20: 46282 | AY20: 2026-09-17 | AZ20: =IFERROR(VLOOKUP(AX20,Feiertage!$A$3:$B$29,2,FALSE),"") ->  | BA20: =IFERROR(VLOOKUP(AX20,Mondphasen!$G$23:$H$36,2,FALSE),"") ->  | BB20: 38 | BC20: 2026-10-17 | BD20: 46312 | BE20: 2026-10-17 | BF20: =IFERROR(VLOOKUP(BD20,Feiertage!$A$3:$B$29,2,FALSE),"") ->  | BG20: =IFERROR(VLOOKUP(BD20,Mondphasen!$G$23:$H$36,2,FALSE),"") ->  | BH20: 42 | BI20: 2026-11-17 | BJ20: 46343 | BK20: 2026-11-17 | BL20: =IFERROR(VLOOKUP(BJ20,Feiertage!$A$3:$B$29,2,FALSE),"") ->  | BM20: =IFERROR(VLOOKUP(BJ20,Mondphasen!$G$23:$H$36,2,FALSE),"") ->  | BN20: 47 | BO20: 2026-12-17 | BP20: 46373 | BQ20: 2026-12-17 | BR20: =IFERROR(VLOOKUP(BP20,Feiertage!$A$3:$B$29,2,FALSE),"") ->  | BS20: =IFERROR(VLOOKUP(BP20,Mondphasen!$G$23:$H$36,2,FALSE),"") ->  | BT20: 51
A21: 2026-01-18 | B21: 46040 | C21: 2026-01-18 | D21: =IFERROR(VLOOKUP(B21,Feiertage!$A$3:$B$29,2,FALSE),"") ->  | E21: =IFERROR(VLOOKUP(B21,Mondphasen!$G$23:$H$36,2,FALSE),"") ->  | F21: 3 | G21: 2026-02-18 | H21: 46071 | I21: 2026-02-18 | J21: =IFERROR(VLOOKUP(H21,Feiertage!$A$3:$B$29,2,FALSE),"") -> Aschermittwoch | K21: =IFERROR(VLOOKUP(H21,Mondphasen!$G$23:$H$36,2,FALSE),"") ->  | L21: 8 | M21: 2026-03-18 | N21: 46099 | O21: 2026-03-18 | P21: =IFERROR(VLOOKUP(N21,Feiertage!$A$3:$B$29,2,FALSE),"") ->  | Q21: =IFERROR(VLOOKUP(N21,Mondphasen!$G$23:$H$36,2,FALSE),"") ->  | R21: 12 | S21: 2026-04-18 | T21: 46130 | U21: 2026-04-18 | V21: =IFERROR(VLOOKUP(T21,Feiertage!$A$3:$B$29,2,FALSE),"") ->  | W21: =IFERROR(VLOOKUP(T21,Mondphasen!$G$23:$H$36,2,FALSE),"") ->  | X21: 16 | Y21: 2026-05-18 | Z21: 46160 | AA21: 2026-05-18 | AB21: =IFERROR(VLOOKUP(Z21,Feiertage!$A$3:$B$29,2,FALSE),"") ->  | AC21: =IFERROR(VLOOKUP(Z21,Mondphasen!$G$23:$H$36,2,FALSE),"") ->  | AD21: 21 | AE21: 2026-06-18 | AF21: 46191 | AG21: 2026-06-18 | AH21: =IFERROR(VLOOKUP(AF21,Feiertage!$A$3:$B$29,2,FALSE),"") ->  | AI21: =IFERROR(VLOOKUP(AF21,Mondphasen!$G$23:$H$36,2,FALSE),"") ->  | AJ21: 25 | AK21: 2026-07-18 | AL21: 46221 | AM21: 2026-07-18 | AN21: =IFERROR(VLOOKUP(AL21,Feiertage!$A$3:$B$29,2,FALSE),"") ->  | AO21: =IFERROR(VLOOKUP(AL21,Mondphasen!$G$23:$H$36,2,FALSE),"") ->  | AP21: 29 | AQ21: 2026-08-18 | AR21: 46252 | AS21: 2026-08-18 | AT21: =IFERROR(VLOOKUP(AR21,Feiertage!$A$3:$B$29,2,FALSE),"") ->  | AU21: =IFERROR(VLOOKUP(AR21,Mondphasen!$G$23:$H$36,2,FALSE),"") ->  | AV21: 34 | AW21: 2026-09-18 | AX21: 46283 | AY21: 2026-09-18 | AZ21: =IFERROR(VLOOKUP(AX21,Feiertage!$A$3:$B$29,2,FALSE),"") ->  | BA21: =IFERROR(VLOOKUP(AX21,Mondphasen!$G$23:$H$36,2,FALSE),"") ->  | BB21: 38 | BC21: 2026-10-18 | BD21: 46313 | BE21: 2026-10-18 | BF21: =IFERROR(VLOOKUP(BD21,Feiertage!$A$3:$B$29,2,FALSE),"") ->  | BG21: =IFERROR(VLOOKUP(BD21,Mondphasen!$G$23:$H$36,2,FALSE),"") ->  | BH21: 42 | BI21: 2026-11-18 | BJ21: 46344 | BK21: 2026-11-18 | BL21: =IFERROR(VLOOKUP(BJ21,Feiertage!$A$3:$B$29,2,FALSE),"") ->  | BM21: =IFERROR(VLOOKUP(BJ21,Mondphasen!$G$23:$H$36,2,FALSE),"") ->  | BN21: 47 | BO21: 2026-12-18 | BP21: 46374 | BQ21: 2026-12-18 | BR21: =IFERROR(VLOOKUP(BP21,Feiertage!$A$3:$B$29,2,FALSE),"") ->  | BS21: =IFERROR(VLOOKUP(BP21,Mondphasen!$G$23:$H$36,2,FALSE),"") ->  | BT21: 51
A22: 2026-01-19 | B22: 46041 | C22: 2026-01-19 | D22: =IFERROR(VLOOKUP(B22,Feiertage!$A$3:$B$29,2,FALSE),"") ->  | E22: =IFERROR(VLOOKUP(B22,Mondphasen!$G$23:$H$36,2,FALSE),"") ->  | F22: 4 | G22: 2026-02-19 | H22: 46072 | I22: 2026-02-19 | J22: =IFERROR(VLOOKUP(H22,Feiertage!$A$3:$B$29,2,FALSE),"") ->  | K22: =IFERROR(VLOOKUP(H22,Mondphasen!$G$23:$H$36,2,FALSE),"") ->  | L22: 8 | M22: 2026-03-19 | N22: 46100 | O22: 2026-03-19 | P22: =IFERROR(VLOOKUP(N22,Feiertage!$A$3:$B$29,2,FALSE),"") ->  | Q22: =IFERROR(VLOOKUP(N22,Mondphasen!$G$23:$H$36,2,FALSE),"") ->  | R22: 12 | S22: 2026-04-19 | T22: 46131 | U22: 2026-04-19 | V22: =IFERROR(VLOOKUP(T22,Feiertage!$A$3:$B$29,2,FALSE),"") ->  | W22: =IFERROR(VLOOKUP(T22,Mondphasen!$G$23:$H$36,2,FALSE),"") ->  | X22: 16 | Y22: 2026-05-19 | Z22: 46161 | AA22: 2026-05-19 | AB22: =IFERROR(VLOOKUP(Z22,Feiertage!$A$3:$B$29,2,FALSE),"") ->  | AC22: =IFERROR(VLOOKUP(Z22,Mondphasen!$G$23:$H$36,2,FALSE),"") ->  | AD22: 21 | AE22: 2026-06-19 | AF22: 46192 | AG22: 2026-06-19 | AH22: =IFERROR(VLOOKUP(AF22,Feiertage!$A$3:$B$29,2,FALSE),"") ->  | AI22: =IFERROR(VLOOKUP(AF22,Mondphasen!$G$23:$H$36,2,FALSE),"") ->  | AJ22: 25 | AK22: 2026-07-19 | AL22: 46222 | AM22: 2026-07-19 | AN22: =IFERROR(VLOOKUP(AL22,Feiertage!$A$3:$B$29,2,FALSE),"") ->  | AO22: =IFERROR(VLOOKUP(AL22,Mondphasen!$G$23:$H$36,2,FALSE),"") ->  | AP22: 29 | AQ22: 2026-08-19 | AR22: 46253 | AS22: 2026-08-19 | AT22: =IFERROR(VLOOKUP(AR22,Feiertage!$A$3:$B$29,2,FALSE),"") ->  | AU22: =IFERROR(VLOOKUP(AR22,Mondphasen!$G$23:$H$36,2,FALSE),"") ->  | AV22: 34 | AW22: 2026-09-19 | AX22: 46284 | AY22: 2026-09-19 | AZ22: =IFERROR(VLOOKUP(AX22,Feiertage!$A$3:$B$29,2,FALSE),"") ->  | BA22: =IFERROR(VLOOKUP(AX22,Mondphasen!$G$23:$H$36,2,FALSE),"") ->  | BB22: 38 | BC22: 2026-10-19 | BD22: 46314 | BE22: 2026-10-19 | BF22: =IFERROR(VLOOKUP(BD22,Feiertage!$A$3:$B$29,2,FALSE),"") ->  | BG22: =IFERROR(VLOOKUP(BD22,Mondphasen!$G$23:$H$36,2,FALSE),"") ->  | BH22: 43 | BI22: 2026-11-19 | BJ22: 46345 | BK22: 2026-11-19 | BL22: =IFERROR(VLOOKUP(BJ22,Feiertage!$A$3:$B$29,2,FALSE),"") ->  | BM22: =IFERROR(VLOOKUP(BJ22,Mondphasen!$G$23:$H$36,2,FALSE),"") ->  | BN22: 47 | BO22: 2026-12-19 | BP22: 46375 | BQ22: 2026-12-19 | BR22: =IFERROR(VLOOKUP(BP22,Feiertage!$A$3:$B$29,2,FALSE),"") ->  | BS22: =IFERROR(VLOOKUP(BP22,Mondphasen!$G$23:$H$36,2,FALSE),"") ->  | BT22: 51
A23: 2026-01-20 | B23: 46042 | C23: 2026-01-20 | D23: =IFERROR(VLOOKUP(B23,Feiertage!$A$3:$B$29,2,FALSE),"") ->  | E23: =IFERROR(VLOOKUP(B23,Mondphasen!$G$23:$H$36,2,FALSE),"") ->  | F23: 4 | G23: 2026-02-20 | H23: 46073 | I23: 2026-02-20 | J23: =IFERROR(VLOOKUP(H23,Feiertage!$A$3:$B$29,2,FALSE),"") ->  | K23: =IFERROR(VLOOKUP(H23,Mondphasen!$G$23:$H$36,2,FALSE),"") ->  | L23: 8 | M23: 2026-03-20 | N23: 46101 | O23: 2026-03-20 | P23: =IFERROR(VLOOKUP(N23,Feiertage!$A$3:$B$29,2,FALSE),"") ->  | Q23: =IFERROR(VLOOKUP(N23,Mondphasen!$G$23:$H$36,2,FALSE),"") ->  | R23: 12 | S23: 2026-04-20 | T23: 46132 | U23: 2026-04-20 | V23: =IFERROR(VLOOKUP(T23,Feiertage!$A$3:$B$29,2,FALSE),"") ->  | W23: =IFERROR(VLOOKUP(T23,Mondphasen!$G$23:$H$36,2,FALSE),"") ->  | X23: 17 | Y23: 2026-05-20 | Z23: 46162 | AA23: 2026-05-20 | AB23: =IFERROR(VLOOKUP(Z23,Feiertage!$A$3:$B$29,2,FALSE),"") ->  | AC23: =IFERROR(VLOOKUP(Z23,Mondphasen!$G$23:$H$36,2,FALSE),"") ->  | AD23: 21 | AE23: 2026-06-20 | AF23: 46193 | AG23: 2026-06-20 | AH23: =IFERROR(VLOOKUP(AF23,Feiertage!$A$3:$B$29,2,FALSE),"") ->  | AI23: =IFERROR(VLOOKUP(AF23,Mondphasen!$G$23:$H$36,2,FALSE),"") ->  | AJ23: 25 | AK23: 2026-07-20 | AL23: 46223 | AM23: 2026-07-20 | AN23: =IFERROR(VLOOKUP(AL23,Feiertage!$A$3:$B$29,2,FALSE),"") ->  | AO23: =IFERROR(VLOOKUP(AL23,Mondphasen!$G$23:$H$36,2,FALSE),"") ->  | AP23: 30 | AQ23: 2026-08-20 | AR23: 46254 | AS23: 2026-08-20 | AT23: =IFERROR(VLOOKUP(AR23,Feiertage!$A$3:$B$29,2,FALSE),"") ->  | AU23: =IFERROR(VLOOKUP(AR23,Mondphasen!$G$23:$H$36,2,FALSE),"") ->  | AV23: 34 | AW23: 2026-09-20 | AX23: 46285 | AY23: 2026-09-20 | AZ23: =IFERROR(VLOOKUP(AX23,Feiertage!$A$3:$B$29,2,FALSE),"") -> Eidg. Buß und Bettag | BA23: =IFERROR(VLOOKUP(AX23,Mondphasen!$G$23:$H$36,2,FALSE),"") ->  | BB23: 38 | BC23: 2026-10-20 | BD23: 46315 | BE23: 2026-10-20 | BF23: =IFERROR(VLOOKUP(BD23,Feiertage!$A$3:$B$29,2,FALSE),"") ->  | BG23: =IFERROR(VLOOKUP(BD23,Mondphasen!$G$23:$H$36,2,FALSE),"") ->  | BH23: 43 | BI23: 2026-11-20 | BJ23: 46346 | BK23: 2026-11-20 | BL23: =IFERROR(VLOOKUP(BJ23,Feiertage!$A$3:$B$29,2,FALSE),"") ->  | BM23: =IFERROR(VLOOKUP(BJ23,Mondphasen!$G$23:$H$36,2,FALSE),"") ->  | BN23: 47 | BO23: 2026-12-20 | BP23: 46376 | BQ23: 2026-12-20 | BR23: =IFERROR(VLOOKUP(BP23,Feiertage!$A$3:$B$29,2,FALSE),"") ->  | BS23: =IFERROR(VLOOKUP(BP23,Mondphasen!$G$23:$H$36,2,FALSE),"") ->  | BT23: 51
A24: 2026-01-21 | B24: 46043 | C24: 2026-01-21 | D24: =IFERROR(VLOOKUP(B24,Feiertage!$A$3:$B$29,2,FALSE),"") ->  | E24: =IFERROR(VLOOKUP(B24,Mondphasen!$G$23:$H$36,2,FALSE),"") ->  | F24: 4 | G24: 2026-02-21 | H24: 46074 | I24: 2026-02-21 | J24: =IFERROR(VLOOKUP(H24,Feiertage!$A$3:$B$29,2,FALSE),"") ->  | K24: =IFERROR(VLOOKUP(H24,Mondphasen!$G$23:$H$36,2,FALSE),"") ->  | L24: 8 | M24: 2026-03-21 | N24: 46102 | O24: 2026-03-21 | P24: =IFERROR(VLOOKUP(N24,Feiertage!$A$3:$B$29,2,FALSE),"") ->  | Q24: =IFERROR(VLOOKUP(N24,Mondphasen!$G$23:$H$36,2,FALSE),"") ->  | R24: 12 | S24: 2026-04-21 | T24: 46133 | U24: 2026-04-21 | V24: =IFERROR(VLOOKUP(T24,Feiertage!$A$3:$B$29,2,FALSE),"") ->  | W24: =IFERROR(VLOOKUP(T24,Mondphasen!$G$23:$H$36,2,FALSE),"") ->  | X24: 17 | Y24: 2026-05-21 | Z24: 46163 | AA24: 2026-05-21 | AB24: =IFERROR(VLOOKUP(Z24,Feiertage!$A$3:$B$29,2,FALSE),"") ->  | AC24: =IFERROR(VLOOKUP(Z24,Mondphasen!$G$23:$H$36,2,FALSE),"") ->  | AD24: 21 | AE24: 2026-06-21 | AF24: 46194 | AG24: 2026-06-21 | AH24: =IFERROR(VLOOKUP(AF24,Feiertage!$A$3:$B$29,2,FALSE),"") ->  | AI24: =IFERROR(VLOOKUP(AF24,Mondphasen!$G$23:$H$36,2,FALSE),"") ->  | AJ24: 25 | AK24: 2026-07-21 | AL24: 46224 | AM24: 2026-07-21 | AN24: =IFERROR(VLOOKUP(AL24,Feiertage!$A$3:$B$29,2,FALSE),"") ->  | AO24: =IFERROR(VLOOKUP(AL24,Mondphasen!$G$23:$H$36,2,FALSE),"") ->  | AP24: 30 | AQ24: 2026-08-21 | AR24: 46255 | AS24: 2026-08-21 | AT24: =IFERROR(VLOOKUP(AR24,Feiertage!$A$3:$B$29,2,FALSE),"") ->  | AU24: =IFERROR(VLOOKUP(AR24,Mondphasen!$G$23:$H$36,2,FALSE),"") ->  | AV24: 34 | AW24: 2026-09-21 | AX24: 46286 | AY24: 2026-09-21 | AZ24: =IFERROR(VLOOKUP(AX24,Feiertage!$A$3:$B$29,2,FALSE),"") ->  | BA24: =IFERROR(VLOOKUP(AX24,Mondphasen!$G$23:$H$36,2,FALSE),"") ->  | BB24: 39 | BC24: 2026-10-21 | BD24: 46316 | BE24: 2026-10-21 | BF24: =IFERROR(VLOOKUP(BD24,Feiertage!$A$3:$B$29,2,FALSE),"") ->  | BG24: =IFERROR(VLOOKUP(BD24,Mondphasen!$G$23:$H$36,2,FALSE),"") ->  | BH24: 43 | BI24: 2026-11-21 | BJ24: 46347 | BK24: 2026-11-21 | BL24: =IFERROR(VLOOKUP(BJ24,Feiertage!$A$3:$B$29,2,FALSE),"") ->  | BM24: =IFERROR(VLOOKUP(BJ24,Mondphasen!$G$23:$H$36,2,FALSE),"") ->  | BN24: 47 | BO24: 2026-12-21 | BP24: 46377 | BQ24: 2026-12-21 | BR24: =IFERROR(VLOOKUP(BP24,Feiertage!$A$3:$B$29,2,FALSE),"") ->  | BS24: =IFERROR(VLOOKUP(BP24,Mondphasen!$G$23:$H$36,2,FALSE),"") ->  | BT24: 52
A25: 2026-01-22 | B25: 46044 | C25: 2026-01-22 | D25: =IFERROR(VLOOKUP(B25,Feiertage!$A$3:$B$29,2,FALSE),"") ->  | E25: =IFERROR(VLOOKUP(B25,Mondphasen!$G$23:$H$36,2,FALSE),"") ->  | F25: 4 | G25: 2026-02-22 | H25: 46075 | I25: 2026-02-22 | J25: =IFERROR(VLOOKUP(H25,Feiertage!$A$3:$B$29,2,FALSE),"") ->  | K25: =IFERROR(VLOOKUP(H25,Mondphasen!$G$23:$H$36,2,FALSE),"") ->  | L25: 8 | M25: 2026-03-22 | N25: 46103 | O25: 2026-03-22 | P25: =IFERROR(VLOOKUP(N25,Feiertage!$A$3:$B$29,2,FALSE),"") ->  | Q25: =IFERROR(VLOOKUP(N25,Mondphasen!$G$23:$H$36,2,FALSE),"") ->  | R25: 12 | S25: 2026-04-22 | T25: 46134 | U25: 2026-04-22 | V25: =IFERROR(VLOOKUP(T25,Feiertage!$A$3:$B$29,2,FALSE),"") ->  | W25: =IFERROR(VLOOKUP(T25,Mondphasen!$G$23:$H$36,2,FALSE),"") ->  | X25: 17 | Y25: 2026-05-22 | Z25: 46164 | AA25: 2026-05-22 | AB25: =IFERROR(VLOOKUP(Z25,Feiertage!$A$3:$B$29,2,FALSE),"") ->  | AC25: =IFERROR(VLOOKUP(Z25,Mondphasen!$G$23:$H$36,2,FALSE),"") ->  | AD25: 21 | AE25: 2026-06-22 | AF25: 46195 | AG25: 2026-06-22 | AH25: =IFERROR(VLOOKUP(AF25,Feiertage!$A$3:$B$29,2,FALSE),"") ->  | AI25: =IFERROR(VLOOKUP(AF25,Mondphasen!$G$23:$H$36,2,FALSE),"") ->  | AJ25: 26 | AK25: 2026-07-22 | AL25: 46225 | AM25: 2026-07-22 | AN25: =IFERROR(VLOOKUP(AL25,Feiertage!$A$3:$B$29,2,FALSE),"") ->  | AO25: =IFERROR(VLOOKUP(AL25,Mondphasen!$G$23:$H$36,2,FALSE),"") ->  | AP25: 30 | AQ25: 2026-08-22 | AR25: 46256 | AS25: 2026-08-22 | AT25: =IFERROR(VLOOKUP(AR25,Feiertage!$A$3:$B$29,2,FALSE),"") ->  | AU25: =IFERROR(VLOOKUP(AR25,Mondphasen!$G$23:$H$36,2,FALSE),"") ->  | AV25: 34 | AW25: 2026-09-22 | AX25: 46287 | AY25: 2026-09-22 | AZ25: =IFERROR(VLOOKUP(AX25,Feiertage!$A$3:$B$29,2,FALSE),"") ->  | BA25: =IFERROR(VLOOKUP(AX25,Mondphasen!$G$23:$H$36,2,FALSE),"") ->  | BB25: 39 | BC25: 2026-10-22 | BD25: 46317 | BE25: 2026-10-22 | BF25: =IFERROR(VLOOKUP(BD25,Feiertage!$A$3:$B$29,2,FALSE),"") ->  | BG25: =IFERROR(VLOOKUP(BD25,Mondphasen!$G$23:$H$36,2,FALSE),"") ->  | BH25: 43 | BI25: 2026-11-22 | BJ25: 46348 | BK25: 2026-11-22 | BL25: =IFERROR(VLOOKUP(BJ25,Feiertage!$A$3:$B$29,2,FALSE),"") ->  | BM25: =IFERROR(VLOOKUP(BJ25,Mondphasen!$G$23:$H$36,2,FALSE),"") ->  | BN25: 47 | BO25: 2026-12-22 | BP25: 46378 | BQ25: 2026-12-22 | BR25: =IFERROR(VLOOKUP(BP25,Feiertage!$A$3:$B$29,2,FALSE),"") ->  | BS25: =IFERROR(VLOOKUP(BP25,Mondphasen!$G$23:$H$36,2,FALSE),"") ->  | BT25: 52
A26: 2026-01-23 | B26: 46045 | C26: 2026-01-23 | D26: =IFERROR(VLOOKUP(B26,Feiertage!$A$3:$B$29,2,FALSE),"") ->  | E26: =IFERROR(VLOOKUP(B26,Mondphasen!$G$23:$H$36,2,FALSE),"") ->  | F26: 4 | G26: 2026-02-23 | H26: 46076 | I26: 2026-02-23 | J26: =IFERROR(VLOOKUP(H26,Feiertage!$A$3:$B$29,2,FALSE),"") ->  | K26: =IFERROR(VLOOKUP(H26,Mondphasen!$G$23:$H$36,2,FALSE),"") ->  | L26: 9 | M26: 2026-03-23 | N26: 46104 | O26: 2026-03-23 | P26: =IFERROR(VLOOKUP(N26,Feiertage!$A$3:$B$29,2,FALSE),"") ->  | Q26: =IFERROR(VLOOKUP(N26,Mondphasen!$G$23:$H$36,2,FALSE),"") ->  | R26: 13 | S26: 2026-04-23 | T26: 46135 | U26: 2026-04-23 | V26: =IFERROR(VLOOKUP(T26,Feiertage!$A$3:$B$29,2,FALSE),"") ->  | W26: =IFERROR(VLOOKUP(T26,Mondphasen!$G$23:$H$36,2,FALSE),"") ->  | X26: 17 | Y26: 2026-05-23 | Z26: 46165 | AA26: 2026-05-23 | AB26: =IFERROR(VLOOKUP(Z26,Feiertage!$A$3:$B$29,2,FALSE),"") ->  | AC26: =IFERROR(VLOOKUP(Z26,Mondphasen!$G$23:$H$36,2,FALSE),"") ->  | AD26: 21 | AE26: 2026-06-23 | AF26: 46196 | AG26: 2026-06-23 | AH26: =IFERROR(VLOOKUP(AF26,Feiertage!$A$3:$B$29,2,FALSE),"") ->  | AI26: =IFERROR(VLOOKUP(AF26,Mondphasen!$G$23:$H$36,2,FALSE),"") ->  | AJ26: 26 | AK26: 2026-07-23 | AL26: 46226 | AM26: 2026-07-23 | AN26: =IFERROR(VLOOKUP(AL26,Feiertage!$A$3:$B$29,2,FALSE),"") ->  | AO26: =IFERROR(VLOOKUP(AL26,Mondphasen!$G$23:$H$36,2,FALSE),"") ->  | AP26: 30 | AQ26: 2026-08-23 | AR26: 46257 | AS26: 2026-08-23 | AT26: =IFERROR(VLOOKUP(AR26,Feiertage!$A$3:$B$29,2,FALSE),"") ->  | AU26: =IFERROR(VLOOKUP(AR26,Mondphasen!$G$23:$H$36,2,FALSE),"") ->  | AV26: 34 | AW26: 2026-09-23 | AX26: 46288 | AY26: 2026-09-23 | AZ26: =IFERROR(VLOOKUP(AX26,Feiertage!$A$3:$B$29,2,FALSE),"") ->  | BA26: =IFERROR(VLOOKUP(AX26,Mondphasen!$G$23:$H$36,2,FALSE),"") ->  | BB26: 39 | BC26: 2026-10-23 | BD26: 46318 | BE26: 2026-10-23 | BF26: =IFERROR(VLOOKUP(BD26,Feiertage!$A$3:$B$29,2,FALSE),"") ->  | BG26: =IFERROR(VLOOKUP(BD26,Mondphasen!$G$23:$H$36,2,FALSE),"") ->  | BH26: 43 | BI26: 2026-11-23 | BJ26: 46349 | BK26: 2026-11-23 | BL26: =IFERROR(VLOOKUP(BJ26,Feiertage!$A$3:$B$29,2,FALSE),"") ->  | BM26: =IFERROR(VLOOKUP(BJ26,Mondphasen!$G$23:$H$36,2,FALSE),"") ->  | BN26: 48 | BO26: 2026-12-23 | BP26: 46379 | BQ26: 2026-12-23 | BR26: =IFERROR(VLOOKUP(BP26,Feiertage!$A$3:$B$29,2,FALSE),"") ->  | BS26: =IFERROR(VLOOKUP(BP26,Mondphasen!$G$23:$H$36,2,FALSE),"") ->  | BT26: 52
A27: 2026-01-24 | B27: 46046 | C27: 2026-01-24 | D27: =IFERROR(VLOOKUP(B27,Feiertage!$A$3:$B$29,2,FALSE),"") ->  | E27: =IFERROR(VLOOKUP(B27,Mondphasen!$G$23:$H$36,2,FALSE),"") ->  | F27: 4 | G27: 2026-02-24 | H27: 46077 | I27: 2026-02-24 | J27: =IFERROR(VLOOKUP(H27,Feiertage!$A$3:$B$29,2,FALSE),"") ->  | K27: =IFERROR(VLOOKUP(H27,Mondphasen!$G$23:$H$36,2,FALSE),"") ->  | L27: 9 | M27: 2026-03-24 | N27: 46105 | O27: 2026-03-24 | P27: =IFERROR(VLOOKUP(N27,Feiertage!$A$3:$B$29,2,FALSE),"") ->  | Q27: =IFERROR(VLOOKUP(N27,Mondphasen!$G$23:$H$36,2,FALSE),"") ->  | R27: 13 | S27: 2026-04-24 | T27: 46136 | U27: 2026-04-24 | V27: =IFERROR(VLOOKUP(T27,Feiertage!$A$3:$B$29,2,FALSE),"") ->  | W27: =IFERROR(VLOOKUP(T27,Mondphasen!$G$23:$H$36,2,FALSE),"") ->  | X27: 17 | Y27: 2026-05-24 | Z27: 46166 | AA27: 2026-05-24 | AB27: =IFERROR(VLOOKUP(Z27,Feiertage!$A$3:$B$29,2,FALSE),"") -> Pfingsten | AC27: =IFERROR(VLOOKUP(Z27,Mondphasen!$G$23:$H$36,2,FALSE),"") ->  | AD27: 21 | AE27: 2026-06-24 | AF27: 46197 | AG27: 2026-06-24 | AH27: =IFERROR(VLOOKUP(AF27,Feiertage!$A$3:$B$29,2,FALSE),"") ->  | AI27: =IFERROR(VLOOKUP(AF27,Mondphasen!$G$23:$H$36,2,FALSE),"") ->  | AJ27: 26 | AK27: 2026-07-24 | AL27: 46227 | AM27: 2026-07-24 | AN27: =IFERROR(VLOOKUP(AL27,Feiertage!$A$3:$B$29,2,FALSE),"") ->  | AO27: =IFERROR(VLOOKUP(AL27,Mondphasen!$G$23:$H$36,2,FALSE),"") ->  | AP27: 30 | AQ27: 2026-08-24 | AR27: 46258 | AS27: 2026-08-24 | AT27: =IFERROR(VLOOKUP(AR27,Feiertage!$A$3:$B$29,2,FALSE),"") ->  | AU27: =IFERROR(VLOOKUP(AR27,Mondphasen!$G$23:$H$36,2,FALSE),"") ->  | AV27: 35 | AW27: 2026-09-24 | AX27: 46289 | AY27: 2026-09-24 | AZ27: =IFERROR(VLOOKUP(AX27,Feiertage!$A$3:$B$29,2,FALSE),"") ->  | BA27: =IFERROR(VLOOKUP(AX27,Mondphasen!$G$23:$H$36,2,FALSE),"") ->  | BB27: 39 | BC27: 2026-10-24 | BD27: 46319 | BE27: 2026-10-24 | BF27: =IFERROR(VLOOKUP(BD27,Feiertage!$A$3:$B$29,2,FALSE),"") ->  | BG27: =IFERROR(VLOOKUP(BD27,Mondphasen!$G$23:$H$36,2,FALSE),"") ->  | BH27: 43 | BI27: 2026-11-24 | BJ27: 46350 | BK27: 2026-11-24 | BL27: =IFERROR(VLOOKUP(BJ27,Feiertage!$A$3:$B$29,2,FALSE),"") ->  | BM27: =IFERROR(VLOOKUP(BJ27,Mondphasen!$G$23:$H$36,2,FALSE),"") -> l | BN27: 48 | BO27: 2026-12-24 | BP27: 46380 | BQ27: 2026-12-24 | BR27: =IFERROR(VLOOKUP(BP27,Feiertage!$A$3:$B$29,2,FALSE),"") -> Heilig Abend | BS27: =IFERROR(VLOOKUP(BP27,Mondphasen!$G$23:$H$36,2,FALSE),"") -> l | BT27: 52
A28: 2026-01-25 | B28: 46047 | C28: 2026-01-25 | D28: =IFERROR(VLOOKUP(B28,Feiertage!$A$3:$B$29,2,FALSE),"") ->  | E28: =IFERROR(VLOOKUP(B28,Mondphasen!$G$23:$H$36,2,FALSE),"") ->  | F28: 4 | G28: 2026-02-25 | H28: 46078 | I28: 2026-02-25 | J28: =IFERROR(VLOOKUP(H28,Feiertage!$A$3:$B$29,2,FALSE),"") ->  | K28: =IFERROR(VLOOKUP(H28,Mondphasen!$G$23:$H$36,2,FALSE),"") ->  | L28: 9 | M28: 2026-03-25 | N28: 46106 | O28: 2026-03-25 | P28: =IFERROR(VLOOKUP(N28,Feiertage!$A$3:$B$29,2,FALSE),"") ->  | Q28: =IFERROR(VLOOKUP(N28,Mondphasen!$G$23:$H$36,2,FALSE),"") ->  | R28: 13 | S28: 2026-04-25 | T28: 46137 | U28: 2026-04-25 | V28: =IFERROR(VLOOKUP(T28,Feiertage!$A$3:$B$29,2,FALSE),"") ->  | W28: =IFERROR(VLOOKUP(T28,Mondphasen!$G$23:$H$36,2,FALSE),"") ->  | X28: 17 | Y28: 2026-05-25 | Z28: 46167 | AA28: 2026-05-25 | AB28: =IFERROR(VLOOKUP(Z28,Feiertage!$A$3:$B$29,2,FALSE),"") -> Pfingst-Montag | AC28: =IFERROR(VLOOKUP(Z28,Mondphasen!$G$23:$H$36,2,FALSE),"") ->  | AD28: 22 | AE28: 2026-06-25 | AF28: 46198 | AG28: 2026-06-25 | AH28: =IFERROR(VLOOKUP(AF28,Feiertage!$A$3:$B$29,2,FALSE),"") ->  | AI28: =IFERROR(VLOOKUP(AF28,Mondphasen!$G$23:$H$36,2,FALSE),"") ->  | AJ28: 26 | AK28: 2026-07-25 | AL28: 46228 | AM28: 2026-07-25 | AN28: =IFERROR(VLOOKUP(AL28,Feiertage!$A$3:$B$29,2,FALSE),"") ->  | AO28: =IFERROR(VLOOKUP(AL28,Mondphasen!$G$23:$H$36,2,FALSE),"") ->  | AP28: 30 | AQ28: 2026-08-25 | AR28: 46259 | AS28: 2026-08-25 | AT28: =IFERROR(VLOOKUP(AR28,Feiertage!$A$3:$B$29,2,FALSE),"") ->  | AU28: =IFERROR(VLOOKUP(AR28,Mondphasen!$G$23:$H$36,2,FALSE),"") ->  | AV28: 35 | AW28: 2026-09-25 | AX28: 46290 | AY28: 2026-09-25 | AZ28: =IFERROR(VLOOKUP(AX28,Feiertage!$A$3:$B$29,2,FALSE),"") ->  | BA28: =IFERROR(VLOOKUP(AX28,Mondphasen!$G$23:$H$36,2,FALSE),"") ->  | BB28: 39 | BC28: 2026-10-25 | BD28: 46320 | BE28: 2026-10-25 | BF28: =IFERROR(VLOOKUP(BD28,Feiertage!$A$3:$B$29,2,FALSE),"") ->  | BG28: =IFERROR(VLOOKUP(BD28,Mondphasen!$G$23:$H$36,2,FALSE),"") ->  | BH28: 43 | BI28: 2026-11-25 | BJ28: 46351 | BK28: 2026-11-25 | BL28: =IFERROR(VLOOKUP(BJ28,Feiertage!$A$3:$B$29,2,FALSE),"") ->  | BM28: =IFERROR(VLOOKUP(BJ28,Mondphasen!$G$23:$H$36,2,FALSE),"") ->  | BN28: 48 | BO28: 2026-12-25 | BP28: 46381 | BQ28: 2026-12-25 | BR28: =IFERROR(VLOOKUP(BP28,Feiertage!$A$3:$B$29,2,FALSE),"") -> Weihnachten | BS28: =IFERROR(VLOOKUP(BP28,Mondphasen!$G$23:$H$36,2,FALSE),"") ->  | BT28: 52
A29: 2026-01-26 | B29: 46048 | C29: 2026-01-26 | D29: =IFERROR(VLOOKUP(B29,Feiertage!$A$3:$B$29,2,FALSE),"") ->  | E29: =IFERROR(VLOOKUP(B29,Mondphasen!$G$23:$H$36,2,FALSE),"") ->  | F29: 5 | G29: 2026-02-26 | H29: 46079 | I29: 2026-02-26 | J29: =IFERROR(VLOOKUP(H29,Feiertage!$A$3:$B$29,2,FALSE),"") ->  | K29: =IFERROR(VLOOKUP(H29,Mondphasen!$G$23:$H$36,2,FALSE),"") ->  | L29: 9 | M29: 2026-03-26 | N29: 46107 | O29: 2026-03-26 | P29: =IFERROR(VLOOKUP(N29,Feiertage!$A$3:$B$29,2,FALSE),"") ->  | Q29: =IFERROR(VLOOKUP(N29,Mondphasen!$G$23:$H$36,2,FALSE),"") ->  | R29: 13 | S29: 2026-04-26 | T29: 46138 | U29: 2026-04-26 | V29: =IFERROR(VLOOKUP(T29,Feiertage!$A$3:$B$29,2,FALSE),"") ->  | W29: =IFERROR(VLOOKUP(T29,Mondphasen!$G$23:$H$36,2,FALSE),"") ->  | X29: 17 | Y29: 2026-05-26 | Z29: 46168 | AA29: 2026-05-26 | AB29: =IFERROR(VLOOKUP(Z29,Feiertage!$A$3:$B$29,2,FALSE),"") ->  | AC29: =IFERROR(VLOOKUP(Z29,Mondphasen!$G$23:$H$36,2,FALSE),"") ->  | AD29: 22 | AE29: 2026-06-26 | AF29: 46199 | AG29: 2026-06-26 | AH29: =IFERROR(VLOOKUP(AF29,Feiertage!$A$3:$B$29,2,FALSE),"") ->  | AI29: =IFERROR(VLOOKUP(AF29,Mondphasen!$G$23:$H$36,2,FALSE),"") ->  | AJ29: 26 | AK29: 2026-07-26 | AL29: 46229 | AM29: 2026-07-26 | AN29: =IFERROR(VLOOKUP(AL29,Feiertage!$A$3:$B$29,2,FALSE),"") ->  | AO29: =IFERROR(VLOOKUP(AL29,Mondphasen!$G$23:$H$36,2,FALSE),"") ->  | AP29: 30 | AQ29: 2026-08-26 | AR29: 46260 | AS29: 2026-08-26 | AT29: =IFERROR(VLOOKUP(AR29,Feiertage!$A$3:$B$29,2,FALSE),"") ->  | AU29: =IFERROR(VLOOKUP(AR29,Mondphasen!$G$23:$H$36,2,FALSE),"") ->  | AV29: 35 | AW29: 2026-09-26 | AX29: 46291 | AY29: 2026-09-26 | AZ29: =IFERROR(VLOOKUP(AX29,Feiertage!$A$3:$B$29,2,FALSE),"") ->  | BA29: =IFERROR(VLOOKUP(AX29,Mondphasen!$G$23:$H$36,2,FALSE),"") -> l | BB29: 39 | BC29: 2026-10-26 | BD29: 46321 | BE29: 2026-10-26 | BF29: =IFERROR(VLOOKUP(BD29,Feiertage!$A$3:$B$29,2,FALSE),"") ->  | BG29: =IFERROR(VLOOKUP(BD29,Mondphasen!$G$23:$H$36,2,FALSE),"") -> l | BH29: 44 | BI29: 2026-11-26 | BJ29: 46352 | BK29: 2026-11-26 | BL29: =IFERROR(VLOOKUP(BJ29,Feiertage!$A$3:$B$29,2,FALSE),"") ->  | BM29: =IFERROR(VLOOKUP(BJ29,Mondphasen!$G$23:$H$36,2,FALSE),"") ->  | BN29: 48 | BO29: 2026-12-26 | BP29: 46382 | BQ29: 2026-12-26 | BR29: =IFERROR(VLOOKUP(BP29,Feiertage!$A$3:$B$29,2,FALSE),"") -> Stephanstag | BS29: =IFERROR(VLOOKUP(BP29,Mondphasen!$G$23:$H$36,2,FALSE),"") ->  | BT29: 52
A30: 2026-01-27 | B30: 46049 | C30: 2026-01-27 | D30: =IFERROR(VLOOKUP(B30,Feiertage!$A$3:$B$29,2,FALSE),"") ->  | E30: =IFERROR(VLOOKUP(B30,Mondphasen!$G$23:$H$36,2,FALSE),"") ->  | F30: 5 | G30: 2026-02-27 | H30: 46080 | I30: 2026-02-27 | J30: =IFERROR(VLOOKUP(H30,Feiertage!$A$3:$B$29,2,FALSE),"") ->  | K30: =IFERROR(VLOOKUP(H30,Mondphasen!$G$23:$H$36,2,FALSE),"") ->  | L30: 9 | M30: 2026-03-27 | N30: 46108 | O30: 2026-03-27 | P30: =IFERROR(VLOOKUP(N30,Feiertage!$A$3:$B$29,2,FALSE),"") ->  | Q30: =IFERROR(VLOOKUP(N30,Mondphasen!$G$23:$H$36,2,FALSE),"") ->  | R30: 13 | S30: 2026-04-27 | T30: 46139 | U30: 2026-04-27 | V30: =IFERROR(VLOOKUP(T30,Feiertage!$A$3:$B$29,2,FALSE),"") ->  | W30: =IFERROR(VLOOKUP(T30,Mondphasen!$G$23:$H$36,2,FALSE),"") ->  | X30: 18 | Y30: 2026-05-27 | Z30: 46169 | AA30: 2026-05-27 | AB30: =IFERROR(VLOOKUP(Z30,Feiertage!$A$3:$B$29,2,FALSE),"") ->  | AC30: =IFERROR(VLOOKUP(Z30,Mondphasen!$G$23:$H$36,2,FALSE),"") ->  | AD30: 22 | AE30: 2026-06-27 | AF30: 46200 | AG30: 2026-06-27 | AH30: =IFERROR(VLOOKUP(AF30,Feiertage!$A$3:$B$29,2,FALSE),"") ->  | AI30: =IFERROR(VLOOKUP(AF30,Mondphasen!$G$23:$H$36,2,FALSE),"") ->  | AJ30: 26 | AK30: 2026-07-27 | AL30: 46230 | AM30: 2026-07-27 | AN30: =IFERROR(VLOOKUP(AL30,Feiertage!$A$3:$B$29,2,FALSE),"") ->  | AO30: =IFERROR(VLOOKUP(AL30,Mondphasen!$G$23:$H$36,2,FALSE),"") ->  | AP30: 31 | AQ30: 2026-08-27 | AR30: 46261 | AS30: 2026-08-27 | AT30: =IFERROR(VLOOKUP(AR30,Feiertage!$A$3:$B$29,2,FALSE),"") ->  | AU30: =IFERROR(VLOOKUP(AR30,Mondphasen!$G$23:$H$36,2,FALSE),"") ->  | AV30: 35 | AW30: 2026-09-27 | AX30: 46292 | AY30: 2026-09-27 | AZ30: =IFERROR(VLOOKUP(AX30,Feiertage!$A$3:$B$29,2,FALSE),"") ->  | BA30: =IFERROR(VLOOKUP(AX30,Mondphasen!$G$23:$H$36,2,FALSE),"") ->  | BB30: 39 | BC30: 2026-10-27 | BD30: 46322 | BE30: 2026-10-27 | BF30: =IFERROR(VLOOKUP(BD30,Feiertage!$A$3:$B$29,2,FALSE),"") ->  | BG30: =IFERROR(VLOOKUP(BD30,Mondphasen!$G$23:$H$36,2,FALSE),"") ->  | BH30: 44 | BI30: 2026-11-27 | BJ30: 46353 | BK30: 2026-11-27 | BL30: =IFERROR(VLOOKUP(BJ30,Feiertage!$A$3:$B$29,2,FALSE),"") ->  | BM30: =IFERROR(VLOOKUP(BJ30,Mondphasen!$G$23:$H$36,2,FALSE),"") ->  | BN30: 48 | BO30: 2026-12-27 | BP30: 46383 | BQ30: 2026-12-27 | BR30: =IFERROR(VLOOKUP(BP30,Feiertage!$A$3:$B$29,2,FALSE),"") ->  | BS30: =IFERROR(VLOOKUP(BP30,Mondphasen!$G$23:$H$36,2,FALSE),"") ->  | BT30: 52
A31: 2026-01-28 | B31: 46050 | C31: 2026-01-28 | D31: =IFERROR(VLOOKUP(B31,Feiertage!$A$3:$B$29,2,FALSE),"") ->  | E31: =IFERROR(VLOOKUP(B31,Mondphasen!$G$23:$H$36,2,FALSE),"") ->  | F31: 5 | G31: 2026-02-28 | H31: 46081 | I31: 2026-02-28 | J31: =IFERROR(VLOOKUP(H31,Feiertage!$A$3:$B$29,2,FALSE),"") ->  | K31: =IFERROR(VLOOKUP(H31,Mondphasen!$G$23:$H$36,2,FALSE),"") ->  | L31: 9 | M31: 2026-03-28 | N31: 46109 | O31: 2026-03-28 | P31: =IFERROR(VLOOKUP(N31,Feiertage!$A$3:$B$29,2,FALSE),"") ->  | Q31: =IFERROR(VLOOKUP(N31,Mondphasen!$G$23:$H$36,2,FALSE),"") ->  | R31: 13 | S31: 2026-04-28 | T31: 46140 | U31: 2026-04-28 | V31: =IFERROR(VLOOKUP(T31,Feiertage!$A$3:$B$29,2,FALSE),"") ->  | W31: =IFERROR(VLOOKUP(T31,Mondphasen!$G$23:$H$36,2,FALSE),"") ->  | X31: 18 | Y31: 2026-05-28 | Z31: 46170 | AA31: 2026-05-28 | AB31: =IFERROR(VLOOKUP(Z31,Feiertage!$A$3:$B$29,2,FALSE),"") ->  | AC31: =IFERROR(VLOOKUP(Z31,Mondphasen!$G$23:$H$36,2,FALSE),"") ->  | AD31: 22 | AE31: 2026-06-28 | AF31: 46201 | AG31: 2026-06-28 | AH31: =IFERROR(VLOOKUP(AF31,Feiertage!$A$3:$B$29,2,FALSE),"") ->  | AI31: =IFERROR(VLOOKUP(AF31,Mondphasen!$G$23:$H$36,2,FALSE),"") ->  | AJ31: 26 | AK31: 2026-07-28 | AL31: 46231 | AM31: 2026-07-28 | AN31: =IFERROR(VLOOKUP(AL31,Feiertage!$A$3:$B$29,2,FALSE),"") ->  | AO31: =IFERROR(VLOOKUP(AL31,Mondphasen!$G$23:$H$36,2,FALSE),"") ->  | AP31: 31 | AQ31: 2026-08-28 | AR31: 46262 | AS31: 2026-08-28 | AT31: =IFERROR(VLOOKUP(AR31,Feiertage!$A$3:$B$29,2,FALSE),"") ->  | AU31: =IFERROR(VLOOKUP(AR31,Mondphasen!$G$23:$H$36,2,FALSE),"") -> l | AV31: 35 | AW31: 2026-09-28 | AX31: 46293 | AY31: 2026-09-28 | AZ31: =IFERROR(VLOOKUP(AX31,Feiertage!$A$3:$B$29,2,FALSE),"") ->  | BA31: =IFERROR(VLOOKUP(AX31,Mondphasen!$G$23:$H$36,2,FALSE),"") ->  | BB31: 40 | BC31: 2026-10-28 | BD31: 46323 | BE31: 2026-10-28 | BF31: =IFERROR(VLOOKUP(BD31,Feiertage!$A$3:$B$29,2,FALSE),"") ->  | BG31: =IFERROR(VLOOKUP(BD31,Mondphasen!$G$23:$H$36,2,FALSE),"") ->  | BH31: 44 | BI31: 2026-11-28 | BJ31: 46354 | BK31: 2026-11-28 | BL31: =IFERROR(VLOOKUP(BJ31,Feiertage!$A$3:$B$29,2,FALSE),"") ->  | BM31: =IFERROR(VLOOKUP(BJ31,Mondphasen!$G$23:$H$36,2,FALSE),"") ->  | BN31: 48 | BO31: 2026-12-28 | BP31: 46384 | BQ31: 2026-12-28 | BR31: =IFERROR(VLOOKUP(BP31,Feiertage!$A$3:$B$29,2,FALSE),"") ->  | BS31: =IFERROR(VLOOKUP(BP31,Mondphasen!$G$23:$H$36,2,FALSE),"") ->  | BT31: 53
A32: 2026-01-29 | B32: 46051 | C32: 2026-01-29 | D32: =IFERROR(VLOOKUP(B32,Feiertage!$A$3:$B$29,2,FALSE),"") ->  | E32: =IFERROR(VLOOKUP(B32,Mondphasen!$G$23:$H$36,2,FALSE),"") ->  | F32: 5 | J32: =IFERROR(VLOOKUP(H32,Feiertage!$A$3:$B$29,2,FALSE),"") ->  | K32: =IFERROR(VLOOKUP(H32,Mondphasen!$G$23:$H$36,2,FALSE),"") ->  | M32: 2026-03-29 | N32: 46110 | O32: 2026-03-29 | P32: =IFERROR(VLOOKUP(N32,Feiertage!$A$3:$B$29,2,FALSE),"") -> Palmsonntag | Q32: =IFERROR(VLOOKUP(N32,Mondphasen!$G$23:$H$36,2,FALSE),"") ->  | R32: 13 | S32: 2026-04-29 | T32: 46141 | U32: 2026-04-29 | V32: =IFERROR(VLOOKUP(T32,Feiertage!$A$3:$B$29,2,FALSE),"") ->  | W32: =IFERROR(VLOOKUP(T32,Mondphasen!$G$23:$H$36,2,FALSE),"") ->  | X32: 18 | Y32: 2026-05-29 | Z32: 46171 | AA32: 2026-05-29 | AB32: =IFERROR(VLOOKUP(Z32,Feiertage!$A$3:$B$29,2,FALSE),"") ->  | AC32: =IFERROR(VLOOKUP(Z32,Mondphasen!$G$23:$H$36,2,FALSE),"") ->  | AD32: 22 | AE32: 2026-06-29 | AF32: 46202 | AG32: 2026-06-29 | AH32: =IFERROR(VLOOKUP(AF32,Feiertage!$A$3:$B$29,2,FALSE),"") ->  | AI32: =IFERROR(VLOOKUP(AF32,Mondphasen!$G$23:$H$36,2,FALSE),"") ->  | AJ32: 27 | AK32: 2026-07-29 | AL32: 46232 | AM32: 2026-07-29 | AN32: =IFERROR(VLOOKUP(AL32,Feiertage!$A$3:$B$29,2,FALSE),"") ->  | AO32: =IFERROR(VLOOKUP(AL32,Mondphasen!$G$23:$H$36,2,FALSE),"") -> l | AP32: 31 | AQ32: 2026-08-29 | AR32: 46263 | AS32: 2026-08-29 | AT32: =IFERROR(VLOOKUP(AR32,Feiertage!$A$3:$B$29,2,FALSE),"") ->  | AU32: =IFERROR(VLOOKUP(AR32,Mondphasen!$G$23:$H$36,2,FALSE),"") ->  | AV32: 35 | AW32: 2026-09-29 | AX32: 46294 | AY32: 2026-09-29 | AZ32: =IFERROR(VLOOKUP(AX32,Feiertage!$A$3:$B$29,2,FALSE),"") ->  | BA32: =IFERROR(VLOOKUP(AX32,Mondphasen!$G$23:$H$36,2,FALSE),"") ->  | BB32: 40 | BC32: 2026-10-29 | BD32: 46324 | BE32: 2026-10-29 | BF32: =IFERROR(VLOOKUP(BD32,Feiertage!$A$3:$B$29,2,FALSE),"") ->  | BG32: =IFERROR(VLOOKUP(BD32,Mondphasen!$G$23:$H$36,2,FALSE),"") ->  | BH32: 44 | BI32: 2026-11-29 | BJ32: 46355 | BK32: 2026-11-29 | BL32: =IFERROR(VLOOKUP(BJ32,Feiertage!$A$3:$B$29,2,FALSE),"") ->  | BM32: =IFERROR(VLOOKUP(BJ32,Mondphasen!$G$23:$H$36,2,FALSE),"") ->  | BN32: 48 | BO32: 2026-12-29 | BP32: 46385 | BQ32: 2026-12-29 | BR32: =IFERROR(VLOOKUP(BP32,Feiertage!$A$3:$B$29,2,FALSE),"") ->  | BS32: =IFERROR(VLOOKUP(BP32,Mondphasen!$G$23:$H$36,2,FALSE),"") ->  | BT32: 53
A33: 2026-01-30 | B33: 46052 | C33: 2026-01-30 | D33: =IFERROR(VLOOKUP(B33,Feiertage!$A$3:$B$29,2,FALSE),"") ->  | E33: =IFERROR(VLOOKUP(B33,Mondphasen!$G$23:$H$36,2,FALSE),"") ->  | F33: 5 | J33: =IFERROR(VLOOKUP(H33,Feiertage!$A$3:$B$29,2,FALSE),"") ->  | K33: =IFERROR(VLOOKUP(H33,Mondphasen!$G$23:$H$36,2,FALSE),"") ->  | M33: 2026-03-30 | N33: 46111 | O33: 2026-03-30 | P33: =IFERROR(VLOOKUP(N33,Feiertage!$A$3:$B$29,2,FALSE),"") ->  | Q33: =IFERROR(VLOOKUP(N33,Mondphasen!$G$23:$H$36,2,FALSE),"") ->  | R33: 14 | S33: 2026-04-30 | T33: 46142 | U33: 2026-04-30 | V33: =IFERROR(VLOOKUP(T33,Feiertage!$A$3:$B$29,2,FALSE),"") ->  | W33: =IFERROR(VLOOKUP(T33,Mondphasen!$G$23:$H$36,2,FALSE),"") ->  | X33: 18 | Y33: 2026-05-30 | Z33: 46172 | AA33: 2026-05-30 | AB33: =IFERROR(VLOOKUP(Z33,Feiertage!$A$3:$B$29,2,FALSE),"") ->  | AC33: =IFERROR(VLOOKUP(Z33,Mondphasen!$G$23:$H$36,2,FALSE),"") ->  | AD33: 22 | AE33: 2026-06-30 | AF33: 46203 | AG33: 2026-06-30 | AH33: =IFERROR(VLOOKUP(AF33,Feiertage!$A$3:$B$29,2,FALSE),"") ->  | AI33: =IFERROR(VLOOKUP(AF33,Mondphasen!$G$23:$H$36,2,FALSE),"") -> l | AJ33: 27 | AK33: 2026-07-30 | AL33: 46233 | AM33: 2026-07-30 | AN33: =IFERROR(VLOOKUP(AL33,Feiertage!$A$3:$B$29,2,FALSE),"") ->  | AO33: =IFERROR(VLOOKUP(AL33,Mondphasen!$G$23:$H$36,2,FALSE),"") ->  | AP33: 31 | AQ33: 2026-08-30 | AR33: 46264 | AS33: 2026-08-30 | AT33: =IFERROR(VLOOKUP(AR33,Feiertage!$A$3:$B$29,2,FALSE),"") ->  | AU33: =IFERROR(VLOOKUP(AR33,Mondphasen!$G$23:$H$36,2,FALSE),"") ->  | AV33: 35 | AW33: 2026-09-30 | AX33: 46295 | AY33: 2026-09-30 | AZ33: =IFERROR(VLOOKUP(AX33,Feiertage!$A$3:$B$29,2,FALSE),"") ->  | BA33: =IFERROR(VLOOKUP(AX33,Mondphasen!$G$23:$H$36,2,FALSE),"") ->  | BB33: 40 | BC33: 2026-10-30 | BD33: 46325 | BE33: 2026-10-30 | BF33: =IFERROR(VLOOKUP(BD33,Feiertage!$A$3:$B$29,2,FALSE),"") ->  | BG33: =IFERROR(VLOOKUP(BD33,Mondphasen!$G$23:$H$36,2,FALSE),"") ->  | BH33: 44 | BI33: 2026-11-30 | BJ33: 46356 | BK33: 2026-11-30 | BL33: =IFERROR(VLOOKUP(BJ33,Feiertage!$A$3:$B$29,2,FALSE),"") ->  | BM33: =IFERROR(VLOOKUP(BJ33,Mondphasen!$G$23:$H$36,2,FALSE),"") ->  | BN33: 49 | BO33: 2026-12-30 | BP33: 46386 | BQ33: 2026-12-30 | BR33: =IFERROR(VLOOKUP(BP33,Feiertage!$A$3:$B$29,2,FALSE),"") ->  | BS33: =IFERROR(VLOOKUP(BP33,Mondphasen!$G$23:$H$36,2,FALSE),"") ->  | BT33: 53
A34: 2026-01-31 | B34: 46053 | C34: 2026-01-31 | D34: =IFERROR(VLOOKUP(B34,Feiertage!$A$3:$B$29,2,FALSE),"") ->  | E34: =IFERROR(VLOOKUP(B34,Mondphasen!$G$23:$H$36,2,FALSE),"") ->  | F34: 5 | J34: =IFERROR(VLOOKUP(H34,Feiertage!$A$3:$B$29,2,FALSE),"") ->  | K34: =IFERROR(VLOOKUP(H34,Mondphasen!$G$23:$H$36,2,FALSE),"") ->  | M34: 2026-03-31 | N34: 46112 | O34: 2026-03-31 | P34: =IFERROR(VLOOKUP(N34,Feiertage!$A$3:$B$29,2,FALSE),"") ->  | Q34: =IFERROR(VLOOKUP(N34,Mondphasen!$G$23:$H$36,2,FALSE),"") ->  | R34: 14 | V34: =IFERROR(VLOOKUP(T34,Feiertage!$A$3:$B$29,2,FALSE),"") ->  | W34: =IFERROR(VLOOKUP(T34,Mondphasen!$G$23:$H$36,2,FALSE),"") ->  | Y34: 2026-05-31 | Z34: 46173 | AA34: 2026-05-31 | AB34: =IFERROR(VLOOKUP(Z34,Feiertage!$A$3:$B$29,2,FALSE),"") ->  | AC34: =IFERROR(VLOOKUP(Z34,Mondphasen!$G$23:$H$36,2,FALSE),"") -> l | AD34: 22 | AH34: =IFERROR(VLOOKUP(AF34,Feiertage!$A$3:$B$29,2,FALSE),"") ->  | AI34: =IFERROR(VLOOKUP(AF34,Mondphasen!$G$23:$H$36,2,FALSE),"") ->  | AK34: 2026-07-31 | AL34: 46234 | AM34: 2026-07-31 | AN34: =IFERROR(VLOOKUP(AL34,Feiertage!$A$3:$B$29,2,FALSE),"") ->  | AO34: =IFERROR(VLOOKUP(AL34,Mondphasen!$G$23:$H$36,2,FALSE),"") ->  | AP34: 31 | AQ34: 2026-08-31 | AR34: 46265 | AS34: 2026-08-31 | AT34: =IFERROR(VLOOKUP(AR34,Feiertage!$A$3:$B$29,2,FALSE),"") ->  | AU34: =IFERROR(VLOOKUP(AR34,Mondphasen!$G$23:$H$36,2,FALSE),"") ->  | AV34: 36 | AZ34: =IFERROR(VLOOKUP(AX34,Feiertage!$A$3:$B$29,2,FALSE),"") ->  | BA34: =IFERROR(VLOOKUP(AX34,Mondphasen!$G$23:$H$36,2,FALSE),"") ->  | BC34: 2026-10-31 | BD34: 46326 | BE34: 2026-10-31 | BF34: =IFERROR(VLOOKUP(BD34,Feiertage!$A$3:$B$29,2,FALSE),"") ->  | BG34: =IFERROR(VLOOKUP(BD34,Mondphasen!$G$23:$H$36,2,FALSE),"") ->  | BH34: 44 | BL34: =IFERROR(VLOOKUP(BJ34,Feiertage!$A$3:$B$29,2,FALSE),"") ->  | BM34: =IFERROR(VLOOKUP(BJ34,Mondphasen!$G$23:$H$36,2,FALSE),"") ->  | BO34: 2026-12-31 | BP34: 46387 | BQ34: 2026-12-31 | BR34: =IFERROR(VLOOKUP(BP34,Feiertage!$A$3:$B$29,2,FALSE),"") -> Silvester | BS34: =IFERROR(VLOOKUP(BP34,Mondphasen!$G$23:$H$36,2,FALSE),"") ->  | BT34: 53

Sheet Feiertage
A1: =IF(COUNTIF($P$3:$P$28,$A$2),"Schaltjahr","") -> 
A2: =YEAR(Kalender!A4) -> 2026 | B2: =A2 -> 2026 | E2: Gesetzlicher Feiertag | P2: Schaltjahre
P3: 2020
A4: =C4 -> 46023 | B4: Neujahr | C4: =DATE(B2,1,1) -> 2026-01-01 | D4: =WEEKDAY(C4,1) -> 1900-01-05 | E4: Ja | G4: =I4 -> 46023 | H4: Neujahr | I4: =DATE($B$2,1,1) -> 2026-01-01 | J4: =WEEKDAY(I4,1) -> 1900-01-05 | K4: Ja | P4: =P3+4 -> 2024
A5: 46024 | B5: Berchtoldstag | C5: =DATE(B2,1,2) -> 2026-01-02 | D5: 1900-01-06 | E5: Ja | G5: 46024 | H5: Berchtoldstag | I5: =DATE($B$2,1,2) -> 2026-01-02 | J5: 1900-01-06 | K5: Ja | P5: =P4+4 -> 2028
A6: 46028 | B6: Heilige drei Könige | C6: =DATE(B2,1,6) -> 2026-01-06 | D6: 1900-01-03 | P6: 2032
A7: 46069 | B7: Fasnacht-Montag | C7: =C13-48 -> 2026-02-16 | D7: 1900-01-02 | P7: 2036
A8: 46070 | B8: Fasnacht-Dienstag | C8: =C13-47 -> 2026-02-17 | D8: 1900-01-03 | P8: 2040
A9: 46071 | B9: Aschermittwoch | C9: =C13-46 -> 2026-02-18 | D9: 1900-01-04 | P9: 2044
A10: 46110 | B10: Palmsonntag | C10: =C13-7 -> 2026-03-29 | D10: 1900-01-01 | P10: 2048
A11: 46114 | B11: Grün-Donnerstag | C11: =C13-3 -> 2026-04-02 | D11: 1900-01-05 | P11: 2052
A12: 46115 | B12: Karfreitag | C12: =C13-2 -> 2026-04-03 | D12: 1900-01-06 | E12: Ja | G12: 46115 | H12: Karfreitag | I12: =L13-2 -> 2026-04-03 | J12: 1900-01-06 | K12: Ja | P12: 2056
A13: 46117 | B13: Ostersonntag | C13: =ROUND((DAY(MINUTE(B2/38)/2+55)&".4."&B2)/7,)*7-6 -> 2026-04-05 | D13: 1900-01-01 | G13: =L13 -> 46117 | H13: Ostersonntag | J13: =WEEKDAY(L13,1) -> 1900-01-01 | L13: =ROUND((DAY(MINUTE($B$2/38)/2+55)&".4."&$B$2)/7,)*7-6 -> 2026-04-05 | P13: 2060
A14: 46118 | B14: Ostermontag | C14: =C13+1 -> 2026-04-06 | D14: 1900-01-02 | E14: Ja | G14: 46118 | H14: Ostermontag | I14: =L13+1 -> 2026-04-06 | J14: 1900-01-02 | K14: Ja | P14: 2064
A15: 46143 | B15: Tag der Arbeit | C15: =DATE(B2,5,1) -> 2026-05-01 | D15: 1900-01-06 | P15: 2068
A16: =C16 -> 46152 | B16: Muttertag | C16: =C15+14-WEEKDAY(C15,2) -> 2026-05-10 | D16: =WEEKDAY(C16,1) -> 1900-01-01 | P16: 2072
A17: 46156 | B17: Auffahrt | C17: =C13+39 -> 2026-05-14 | D17: 1900-01-05 | E17: Ja | G17: 46156 | H17: Auffahrt | I17: =L13+39 -> 2026-05-14 | J17: 1900-01-05 | K17: Ja | P17: 2076
A18: 46166 | B18: Pfingsten | C18: =C13+49 -> 2026-05-24 | D18: 1900-01-01 | P18: 2080
A19: 46167 | B19: Pfingst-Montag | C19: =C13+50 -> 2026-05-25 | D19: 1900-01-02 | E19: Ja | G19: 46167 | H19: Pfingst-Montag | I19: =L13+50 -> 2026-05-25 | J19: 1900-01-02 | K19: Ja | P19: 2084
A20: =C20 -> 46177 | B20: Fronleichnam | C20: =C13+60 -> 2026-06-04 | D20: =WEEKDAY(C20,1) -> 1900-01-05 | P20: 2088
A21: 46235 | B21: National-Feiertag CH | C21: =DATE(B2,8,1) -> 2026-08-01 | D21: 1900-01-07 | E21: Ja | G21: =I21 -> 46235 | H21: National-Feiertag CH | I21: =DATE($B$2,8,1) -> 2026-08-01 | J21: 1900-01-07 | K21: Ja | P21: 2092
A22: 46249 | B22: Maria-Himmelfahrt | C22: =DATE(B2,8,15) -> 2026-08-15 | D22: 1900-01-07 | P22: 2096
A23: =C23 -> 46285 | B23: Eidg. Buß und Bettag | C23: =DATE($A$2,9,1)+21-WEEKDAY(DATE($A$2,9,1),2) -> 2026-09-20 | D23: =WEEKDAY(C23,1) -> 1900-01-01 | E23: Ja | G23: 46285 | H23: Eidg. Buß und Bettag | I23: =DATE($A$2,9,1)+21-WEEKDAY(DATE($A$2,9,1),2) -> 2026-09-20 | J23: 1900-01-01 | K23: Ja | P23: 2100
A24: 46362 | B24: Samichlaus | C24: =DATE(B2,12,6) -> 2026-12-06 | D24: 1900-01-01 | P24: =P23+4 -> 2104
A25: 46327 | B25: Allerheiligen | C25: =DATE(B2,11,1) -> 2026-11-01 | D25: 1900-01-01 | P25: =P24+4 -> 2108
A26: 46380 | B26: Heilig Abend | C26: =DATE(B2,12,24) -> 2026-12-24 | D26: 1900-01-05 | P26: 2112
A27: 46381 | B27: Weihnachten | C27: =DATE(B2,12,25) -> 2026-12-25 | D27: 1900-01-06 | E27: Ja | G27: 46381 | H27: Weihnachten | I27: =DATE($B$2,12,25) -> 2026-12-25 | J27: 1900-01-06 | K27: Ja | P27: 2116
A28: 46382 | B28: Stephanstag | C28: =DATE(B2,12,26) -> 2026-12-26 | D28: 1900-01-07 | E28: Ja | G28: 46382 | H28: Stephanstag | I28: =DATE($B$2,12,26) -> 2026-12-26 | J28: 1900-01-07 | K28: Ja | P28: 2120
A29: 46387 | B29: Silvester | C29: =DATE(B2,12,31) -> 2026-12-31 | D29: 1900-01-05 | P29: 2124

Sheet Mondphasen
A1: Jahr : | B1: =Kalender!L1 -> 2026
A2: Zeitzone : | B2: 2
A4: Neumond | B4: erstes Viertel | C4: Vollmond | D4: letztes Viertel
A5: =Tabelle!H1-2415018.5+Mondphasen!$B$2/24 -> 2025-12-20T03:44:35.240 | B5: =Tabelle!H2-2415018.5+Mondphasen!$B$2/24 -> 2025-12-27T21:11:06.544 | C5: =Tabelle!H3-2415018.5+Mondphasen!$B$2/24 -> 2026-01-03T12:03:54.095 | D5: =Tabelle!H4-2415018.5+Mondphasen!$B$2/24 -> 2026-01-10T17:49:10.327
A6: =Tabelle!H5-2415018.5+Mondphasen!$B$2/24 -> 2026-01-18T21:53:38.343 | B6: =Tabelle!H6-2415018.5+Mondphasen!$B$2/24 -> 2026-01-26T06:49:53.353 | C6: =Tabelle!H7-2415018.5+Mondphasen!$B$2/24 -> 2026-02-02T00:10:58.065 | D6: =Tabelle!H8-2415018.5+Mondphasen!$B$2/24 -> 2026-02-09T14:43:19.490
A7: =Tabelle!H9-2415018.5+Mondphasen!$B$2/24 -> 2026-02-17T14:02:56.538 | B7: =Tabelle!H10-2415018.5+Mondphasen!$B$2/24 -> 2026-02-24T14:30:23.590 | C7: =Tabelle!H11-2415018.5+Mondphasen!$B$2/24 -> 2026-03-03T13:40:13.285 | D7: =Tabelle!H12-2415018.5+Mondphasen!$B$2/24 -> 2026-03-11T11:40:09.350
A8: =Tabelle!H13-2415018.5+Mondphasen!$B$2/24 -> 2026-03-19T03:25:55.556 | B8: =Tabelle!H14-2415018.5+Mondphasen!$B$2/24 -> 2026-03-25T21:19:28.492 | C8: =Tabelle!H15-2415018.5+Mondphasen!$B$2/24 -> 2026-04-02T04:14:14.472 | D8: =Tabelle!H16-2415018.5+Mondphasen!$B$2/24 -> 2026-04-10T06:54:14.789
A9: =Tabelle!H17-2415018.5+Mondphasen!$B$2/24 -> 2026-04-17T13:54:42.866 | B9: =Tabelle!H18-2415018.5+Mondphasen!$B$2/24 -> 2026-04-24T04:33:05.836 | C9: =Tabelle!H19-2415018.5+Mondphasen!$B$2/24 -> 2026-05-01T19:25:23.885 | D9: =Tabelle!H20-2415018.5+Mondphasen!$B$2/24 -> 2026-05-09T23:12:36.949
A10: =Tabelle!H21-2415018.5+Mondphasen!$B$2/24 -> 2026-05-16T22:03:09.493 | B10: =Tabelle!H22-2415018.5+Mondphasen!$B$2/24 -> 2026-05-23T13:12:51.383 | C10: =Tabelle!H23-2415018.5+Mondphasen!$B$2/24 -> 2026-05-31T10:47:35.993 | D10: =Tabelle!H24-2415018.5+Mondphasen!$B$2/24 -> 2026-06-08T12:02:36.416
A11: =Tabelle!H25-2415018.5+Mondphasen!$B$2/24 -> 2026-06-15T04:55:30.156 | B11: =Tabelle!H26-2415018.5+Mondphasen!$B$2/24 -> 2026-06-21T23:57:07.103 | C11: =Tabelle!H27-2415018.5+Mondphasen!$B$2/24 -> 2026-06-30T01:58:58.624 | D11: =Tabelle!H28-2415018.5+Mondphasen!$B$2/24 -> 2026-07-07T21:31:41.070
A12: =Tabelle!H29-2415018.5+Mondphasen!$B$2/24 -> 2026-07-14T11:45:39.037 | B12: =Tabelle!H30-2415018.5+Mondphasen!$B$2/24 -> 2026-07-21T13:06:06.648 | C12: =Tabelle!H31-2415018.5+Mondphasen!$B$2/24 -> 2026-07-29T16:37:21.773 | D12: =Tabelle!H32-2415018.5+Mondphasen!$B$2/24 -> 2026-08-06T04:23:56.576
A13: =Tabelle!H33-2415018.5+Mondphasen!$B$2/24 -> 2026-08-12T19:39:22.069 | B13: =Tabelle!H34-2415018.5+Mondphasen!$B$2/24 -> 2026-08-20T04:46:49.143 | C13: =Tabelle!H35-2415018.5+Mondphasen!$B$2/24 -> 2026-08-28T06:19:22.356 | D13: =Tabelle!H36-2415018.5+Mondphasen!$B$2/24 -> 2026-09-04T09:52:38.359
A14: =Tabelle!H37-2415018.5+Mondphasen!$B$2/24 -> 2026-09-11T05:27:54.256 | B14: =Tabelle!H38-2415018.5+Mondphasen!$B$2/24 -> 2026-09-18T22:45:55.827 | C14: =Tabelle!H39-2415018.5+Mondphasen!$B$2/24 -> 2026-09-26T18:49:29.069 | D14: =Tabelle!H40-2415018.5+Mondphasen!$B$2/24 -> 2026-10-03T15:26:24.680
A15: =Tabelle!H41-2415018.5+Mondphasen!$B$2/24 -> 2026-10-10T17:48:51.753 | B15: =Tabelle!H42-2415018.5+Mondphasen!$B$2/24 -> 2026-10-18T18:15:28.528 | C15: =Tabelle!H43-2415018.5+Mondphasen!$B$2/24 -> 2026-10-26T06:12:17.808 | D15: =Tabelle!H44-2415018.5+Mondphasen!$B$2/24 -> 2026-11-01T22:30:48.137
A16: =Tabelle!H45-2415018.5+Mondphasen!$B$2/24 -> 2026-11-09T09:02:01.332 | B16: =Tabelle!H46-2415018.5+Mondphasen!$B$2/24 -> 2026-11-17T13:49:19.422 | C16: =Tabelle!H47-2415018.5+Mondphasen!$B$2/24 -> 2026-11-24T16:54:10.111 | D16: =Tabelle!H48-2415018.5+Mondphasen!$B$2/24 -> 2026-12-01T08:10:54.434
A17: =Tabelle!H49-2415018.5+Mondphasen!$B$2/24 -> 2026-12-09T02:54:32.560 | B17: =Tabelle!H50-2415018.5+Mondphasen!$B$2/24 -> 2026-12-17T07:44:05.121 | C17: =Tabelle!H51-2415018.5+Mondphasen!$B$2/24 -> 2026-12-24T03:28:52.827 | D17: =Tabelle!H52-2415018.5+Mondphasen!$B$2/24 -> 2026-12-30T21:00:08.699
A18: =Tabelle!H53-2415018.5+Mondphasen!$B$2/24 -> 2027-01-07T22:26:21.035 | B18: =Tabelle!H54-2415018.5+Mondphasen!$B$2/24 -> 2027-01-15T22:37:40.453 | C18: =Tabelle!H55-2415018.5+Mondphasen!$B$2/24 -> 2027-01-22T14:18:11.627 | D18: =Tabelle!H56-2415018.5+Mondphasen!$B$2/24 -> 2027-01-29T12:55:35.646
A22: Neumond | B22: erstes Viertel | C22: Vollmond | D22: letztes Viertel | G22: Vollmond | I22: erstes Viertel | K22: letztes Viertel | M22: Neumond
A23: =TRUNC(A5) -> 2025-12-20 | B23: =TRUNC(B5) -> 2025-12-27 | C23: 2026-01-03 | D23: 2026-01-10 | F23: O | G23: =C23 -> 46025 | H23: l | I23: =B23 -> 46018 | J23: ☽ | K23: =D23 -> 46032 | L23: ☾ | M23: =A23 -> 46011 | N23: l
A24: =TRUNC(A6) -> 2026-01-18 | B24: 2026-01-26 | C24: 2026-02-02 | D24: 2026-02-09 | G24: 46055 | H24: l | I24: =B24 -> 46048 | J24: ☽ | K24: =D24 -> 46062 | L24: ☾ | M24: =A24 -> 46040 | N24: l
A25: =TRUNC(A7) -> 2026-02-17 | B25: 2026-02-24 | C25: 2026-03-03 | D25: 2026-03-11 | G25: 46084 | H25: l | I25: 46077 | J25: ☽ | K25: 46092 | L25: ☾ | M25: 46070 | N25: l
A26: =TRUNC(A8) -> 2026-03-19 | B26: 2026-03-25 | C26: 2026-04-02 | D26: 2026-04-10 | G26: 46114 | H26: l | I26: 46106 | J26: ☽ | K26: 46122 | L26: ☾ | M26: 46100 | N26: l
A27: =TRUNC(A9) -> 2026-04-17 | B27: 2026-04-24 | C27: 2026-05-01 | D27: 2026-05-09 | G27: 46143 | H27: l | I27: 46136 | J27: ☽ | K27: 46151 | L27: ☾ | M27: 46129 | N27: l
A28: =TRUNC(A10) -> 2026-05-16 | B28: 2026-05-23 | C28: 2026-05-31 | D28: 2026-06-08 | G28: 46173 | H28: l | I28: 46165 | J28: ☽ | K28: 46181 | L28: ☾ | M28: 46158 | N28: l
A29: =TRUNC(A11) -> 2026-06-15 | B29: 2026-06-21 | C29: 2026-06-30 | D29: 2026-07-07 | G29: =C29 -> 46203 | H29: l | I29: 46194 | J29: ☽ | K29: 46210 | L29: ☾ | M29: 46188 | N29: l
A30: =TRUNC(A12) -> 2026-07-14 | B30: 2026-07-21 | C30: 2026-07-29 | D30: 2026-08-06 | G30: 46232 | H30: l | I30: 46224 | J30: ☽ | K30: 46240 | L30: ☾ | M30: 46217 | N30: l
A31: =TRUNC(A13) -> 2026-08-12 | B31: 2026-08-20 | C31: 2026-08-28 | D31: 2026-09-04 | G31: 46262 | H31: l | I31: 46254 | J31: ☽ | K31: 46269 | L31: ☾ | M31: 46246 | N31: l
A32: =TRUNC(A14) -> 2026-09-11 | B32: 2026-09-18 | C32: 2026-09-26 | D32: 2026-10-03 | G32: 46291 | H32: l | I32: 46283 | J32: ☽ | K32: 46298 | L32: ☾ | M32: 46276 | N32: l
A33: =TRUNC(A15) -> 2026-10-10 | B33: 2026-10-18 | C33: 2026-10-26 | D33: 2026-11-01 | G33: 46321 | H33: l | I33: 46313 | J33: ☽ | K33: 46327 | L33: ☾ | M33: 46305 | N33: l
A34: =TRUNC(A16) -> 2026-11-09 | B34: 2026-11-17 | C34: 2026-11-24 | D34: 2026-12-01 | G34: 46350 | H34: l | I34: =B34 -> 46343 | J34: ☽ | K34: 46357 | L34: ☾ | M34: 46335 | N34: l
A35: =TRUNC(A17) -> 2026-12-09 | B35: 2026-12-17 | C35: 2026-12-24 | D35: 2026-12-30 | G35: 46380 | H35: l | I35: 46373 | J35: ☽ | K35: 46386 | L35: ☾ | M35: 46365 | N35: l
A36: =TRUNC(A18) -> 2027-01-07 | B36: 2027-01-15 | C36: 2027-01-22 | D36: 2027-01-29 | G36: =C36 -> 46409 | H36: l | I36: 46402 | J36: ☽ | K36: 46416 | L36: ☾ | M36: 46394 | N36: l

Sheet Tabelle
A1: =Mondphasen!B1 -> 2026 | B1: 0 | C1: =INT((A1-2000)*12.3685)+B1 -> 321 | D1: =2451550.09766+29.530588861*C1 -> 2461029.417 | E1: =(2.5534+29.1053567*C1)*PI()/180 -> 163.1075269 | F1: =(201.5643+385.81693528*C1)*PI()/180 -> 2165.060002 | G1: =(160.7108+390.67050284*C1)*PI()/180 -> 2191.53912 | H1: =-0.4072*SIN(F1)+0.17241*SIN(E1)+0.01608*SIN(2*F1)+0.01039*SIN(2*G1)+0.00739*SIN(F1-E1)-0.00514*SIN(F1+E1)+0.00208*SIN(2*E1)-0.00111*SIN(F1-2*G1)+D1 -> 2461029.573
A2: =A1 -> 2026 | B2: 0.25 | C2: 321.25 | D2: 2461036.799 | E2: 163.234523 | F2: 2166.743446 | G2: 2193.243742 | H2: =-0.62801*SIN(F2)+0.17172*SIN(E2)-0.01183*SIN(F2+E2)+0.00862*SIN(2*F2)+0.00804*SIN(2*G2)+0.00454*SIN(F2-E2)+0.00204*SIN(2*E2)-0.0018*SIN(F2-2*G2)+D2+0.00306 -> 2461037.299
A3: =A2 -> 2026 | B3: 0.5 | C3: 321.5 | D3: 2461044.182 | E3: 163.3615191 | F3: 2168.42689 | G3: 2194.948363 | H3: =-0.40614*SIN(F3)+0.17302*SIN(E3)+0.01614*SIN(2*F3)+0.01043*SIN(2*G3)+0.00734*SIN(F3-E3)-0.00515*SIN(F3+E3)+0.00209*SIN(2*E3)-0.00111*SIN(F3-2*G3)+D3 -> 2461043.919
A4: =A3 -> 2026 | B4: 0.75 | C4: 321.75 | D4: 2461051.565 | E4: 163.4885152 | F4: 2170.110334 | G4: 2196.652985 | H4: =-0.62801*SIN(F4)+0.17172*SIN(E4)-0.01183*SIN(F4+E4)+0.00862*SIN(2*F4)+0.00804*SIN(2*G4)+0.00454*SIN(F4-E4)+0.00204*SIN(2*E4)-0.0018*SIN(F4-2*G4)+D4-0.00306 -> 2461051.159
A5: =A1+0.08 -> 2026.08 | B5: 0 | C5: 322 | D5: 2461058.947 | E5: 163.6155112 | F5: 2171.793778 | G5: 2198.357607 | H5: =-0.4072*SIN(F5)+0.17241*SIN(E5)+0.01608*SIN(2*F5)+0.01039*SIN(2*G5)+0.00739*SIN(F5-E5)-0.00514*SIN(F5+E5)+0.00208*SIN(2*E5)-0.00111*SIN(F5-2*G5)+D5 -> 2461059.329
A6: =A5 -> 2026.08 | B6: 0.25 | C6: 322.25 | D6: 2461066.33 | E6: 163.7425073 | F6: 2173.477222 | G6: 2200.062228 | H6: =-0.62801*SIN(F6)+0.17172*SIN(E6)-0.01183*SIN(F6+E6)+0.00862*SIN(2*F6)+0.00804*SIN(2*G6)+0.00454*SIN(F6-E6)+0.00204*SIN(2*E6)-0.0018*SIN(F6-2*G6)+D6+0.00306 -> 2461066.701
A7: =A6 -> 2026.08 | B7: 0.5 | C7: 322.5 | D7: 2461073.713 | E7: 163.8695034 | F7: 2175.160666 | G7: 2201.76685 | H7: =-0.40614*SIN(F7)+0.17302*SIN(E7)+0.01614*SIN(2*F7)+0.01043*SIN(2*G7)+0.00734*SIN(F7-E7)-0.00515*SIN(F7+E7)+0.00209*SIN(2*E7)-0.00111*SIN(F7-2*G7)+D7 -> 2461073.424
A8: =A7 -> 2026.08 | B8: 0.75 | C8: 322.75 | D8: 2461081.095 | E8: 163.9964995 | F8: 2176.84411 | G8: 2203.471471 | H8: =-0.62801*SIN(F8)+0.17172*SIN(E8)-0.01183*SIN(F8+E8)+0.00862*SIN(2*F8)+0.00804*SIN(2*G8)+0.00454*SIN(F8-E8)+0.00204*SIN(2*E8)-0.0018*SIN(F8-2*G8)+D8-0.00306 -> 2461081.03
A9: =A5+0.08 -> 2026.16 | B9: 0 | C9: 323 | D9: 2461088.478 | E9: 164.1234956 | F9: 2178.527554 | G9: 2205.176093 | H9: =-0.4072*SIN(F9)+0.17241*SIN(E9)+0.01608*SIN(2*F9)+0.01039*SIN(2*G9)+0.00739*SIN(F9-E9)-0.00514*SIN(F9+E9)+0.00208*SIN(2*E9)-0.00111*SIN(F9-2*G9)+D9 -> 2461089.002
A10: =A9 -> 2026.16 | B10: 0.25 | C10: 323.25 | D10: 2461095.861 | E10: 164.2504916 | F10: 2180.210998 | G10: 2206.880715 | H10: =-0.62801*SIN(F10)+0.17172*SIN(E10)-0.01183*SIN(F10+E10)+0.00862*SIN(2*F10)+0.00804*SIN(2*G10)+0.00454*SIN(F10-E10)+0.00204*SIN(2*E10)-0.0018*SIN(F10-2*G10)+D10+0.00306 -> 2461096.021
A11: =A10 -> 2026.16 | B11: 0.5 | C11: 323.5 | D11: 2461103.243 | E11: 164.3774877 | F11: 2181.894442 | G11: 2208.585336 | H11: =-0.40614*SIN(F11)+0.17302*SIN(E11)+0.01614*SIN(2*F11)+0.01043*SIN(2*G11)+0.00734*SIN(F11-E11)-0.00515*SIN(F11+E11)+0.00209*SIN(2*E11)-0.00111*SIN(F11-2*G11)+D11 -> 2461102.986
A12: =A11 -> 2026.16 | B12: 0.75 | C12: 323.75 | D12: 2461110.626 | E12: 164.5044838 | F12: 2183.577886 | G12: 2210.289958 | H12: =-0.62801*SIN(F12)+0.17172*SIN(E12)-0.01183*SIN(F12+E12)+0.00862*SIN(2*F12)+0.00804*SIN(2*G12)+0.00454*SIN(F12-E12)+0.00204*SIN(2*E12)-0.0018*SIN(F12-2*G12)+D12-0.00306 -> 2461110.903
A13: =A9+0.08 -> 2026.24 | B13: 0 | C13: 324 | D13: 2461118.008 | E13: 164.6314799 | F13: 2185.26133 | G13: 2211.99458 | H13: =-0.4072*SIN(F13)+0.17241*SIN(E13)+0.01608*SIN(2*F13)+0.01039*SIN(2*G13)+0.00739*SIN(F13-E13)-0.00514*SIN(F13+E13)+0.00208*SIN(2*E13)-0.00111*SIN(F13-2*G13)+D13 -> 2461118.56
A14: =A13 -> 2026.24 | B14: 0.25 | C14: 324.25 | D14: 2461125.391 | E14: 164.7584759 | F14: 2186.944774 | G14: 2213.699201 | H14: =-0.62801*SIN(F14)+0.17172*SIN(E14)-0.01183*SIN(F14+E14)+0.00862*SIN(2*F14)+0.00804*SIN(2*G14)+0.00454*SIN(F14-E14)+0.00204*SIN(2*E14)-0.0018*SIN(F14-2*G14)+D14+0.00306 -> 2461125.305
A15: =A14 -> 2026.24 | B15: 0.5 | C15: 324.5 | D15: 2461132.774 | E15: 164.885472 | F15: 2188.628218 | G15: 2215.403823 | H15: =-0.40614*SIN(F15)+0.17302*SIN(E15)+0.01614*SIN(2*F15)+0.01043*SIN(2*G15)+0.00734*SIN(F15-E15)-0.00515*SIN(F15+E15)+0.00209*SIN(2*E15)-0.00111*SIN(F15-2*G15)+D15 -> 2461132.593
A16: =A15 -> 2026.24 | B16: 0.75 | C16: 324.75 | D16: 2461140.156 | E16: 165.0124681 | F16: 2190.311662 | G16: 2217.108445 | H16: =-0.62801*SIN(F16)+0.17172*SIN(E16)-0.01183*SIN(F16+E16)+0.00862*SIN(2*F16)+0.00804*SIN(2*G16)+0.00454*SIN(F16-E16)+0.00204*SIN(2*E16)-0.0018*SIN(F16-2*G16)+D16-0.00306 -> 2461140.704
A17: =A13+0.08 -> 2026.32 | B17: 0 | C17: 325 | D17: 2461147.539 | E17: 165.1394642 | F17: 2191.995106 | G17: 2218.813066 | H17: =-0.4072*SIN(F17)+0.17241*SIN(E17)+0.01608*SIN(2*F17)+0.01039*SIN(2*G17)+0.00739*SIN(F17-E17)-0.00514*SIN(F17+E17)+0.00208*SIN(2*E17)-0.00111*SIN(F17-2*G17)+D17 -> 2461147.996
A18: =A17 -> 2026.32 | B18: 0.25 | C18: 325.25 | D18: 2461154.922 | E18: 165.2664602 | F18: 2193.67855 | G18: 2220.517688 | H18: =-0.62801*SIN(F18)+0.17172*SIN(E18)-0.01183*SIN(F18+E18)+0.00862*SIN(2*F18)+0.00804*SIN(2*G18)+0.00454*SIN(F18-E18)+0.00204*SIN(2*E18)-0.0018*SIN(F18-2*G18)+D18+0.00306 -> 2461154.606
A19: =A18 -> 2026.32 | B19: 0.5 | C19: 325.5 | D19: 2461162.304 | E19: 165.3934563 | F19: 2195.361994 | G19: 2222.22231 | H19: =-0.40614*SIN(F19)+0.17302*SIN(E19)+0.01614*SIN(2*F19)+0.01043*SIN(2*G19)+0.00734*SIN(F19-E19)-0.00515*SIN(F19+E19)+0.00209*SIN(2*E19)-0.00111*SIN(F19-2*G19)+D19 -> 2461162.226
A20: =A19 -> 2026.32 | B20: 0.75 | C20: 325.75 | D20: 2461169.687 | E20: 165.5204524 | F20: 2197.045438 | G20: 2223.926931 | H20: =-0.62801*SIN(F20)+0.17172*SIN(E20)-0.01183*SIN(F20+E20)+0.00862*SIN(2*F20)+0.00804*SIN(2*G20)+0.00454*SIN(F20-E20)+0.00204*SIN(2*E20)-0.0018*SIN(F20-2*G20)+D20-0.00306 -> 2461170.384
A21: =A17+0.08 -> 2026.4 | B21: 0 | C21: 326 | D21: 2461177.07 | E21: 165.6474485 | F21: 2198.728881 | G21: 2225.631553 | H21: =-0.4072*SIN(F21)+0.17241*SIN(E21)+0.01608*SIN(2*F21)+0.01039*SIN(2*G21)+0.00739*SIN(F21-E21)-0.00514*SIN(F21+E21)+0.00208*SIN(2*E21)-0.00111*SIN(F21-2*G21)+D21 -> 2461177.336
A22: =A21 -> 2026.4 | B22: 0.25 | C22: 326.25 | D22: 2461184.452 | E22: 165.7744445 | F22: 2200.412325 | G22: 2227.336174 | H22: =-0.62801*SIN(F22)+0.17172*SIN(E22)-0.01183*SIN(F22+E22)+0.00862*SIN(2*F22)+0.00804*SIN(2*G22)+0.00454*SIN(F22-E22)+0.00204*SIN(2*E22)-0.0018*SIN(F22-2*G22)+D22+0.00306 -> 2461183.967
A23: =A22 -> 2026.4 | B23: 0.5 | C23: 326.5 | D23: 2461191.835 | E23: 165.9014406 | F23: 2202.095769 | G23: 2229.040796 | H23: =-0.40614*SIN(F23)+0.17302*SIN(E23)+0.01614*SIN(2*F23)+0.01043*SIN(2*G23)+0.00734*SIN(F23-E23)-0.00515*SIN(F23+E23)+0.00209*SIN(2*E23)-0.00111*SIN(F23-2*G23)+D23 -> 2461191.866
A24: =A23 -> 2026.4 | B24: 0.75 | C24: 326.75 | D24: 2461199.218 | E24: 166.0284367 | F24: 2203.779213 | G24: 2230.745418 | H24: =-0.62801*SIN(F24)+0.17172*SIN(E24)-0.01183*SIN(F24+E24)+0.00862*SIN(2*F24)+0.00804*SIN(2*G24)+0.00454*SIN(F24-E24)+0.00204*SIN(2*E24)-0.0018*SIN(F24-2*G24)+D24-0.00306 -> 2461199.918
A25: =A21+0.08 -> 2026.48 | B25: 0 | C25: 327 | D25: 2461206.6 | E25: 166.1554328 | F25: 2205.462657 | G25: 2232.450039 | H25: =-0.4072*SIN(F25)+0.17241*SIN(E25)+0.01608*SIN(2*F25)+0.01039*SIN(2*G25)+0.00739*SIN(F25-E25)-0.00514*SIN(F25+E25)+0.00208*SIN(2*E25)-0.00111*SIN(F25-2*G25)+D25 -> 2461206.622
A26: =A25 -> 2026.48 | B26: 0.25 | C26: 327.25 | D26: 2461213.983 | E26: 166.2824288 | F26: 2207.146101 | G26: 2234.154661 | H26: =-0.62801*SIN(F26)+0.17172*SIN(E26)-0.01183*SIN(F26+E26)+0.00862*SIN(2*F26)+0.00804*SIN(2*G26)+0.00454*SIN(F26-E26)+0.00204*SIN(2*E26)-0.0018*SIN(F26-2*G26)+D26+0.00306 -> 2461213.415
A27: =A26 -> 2026.48 | B27: 0.5 | C27: 327.5 | D27: 2461221.366 | E27: 166.4094249 | F27: 2208.829545 | G27: 2235.859283 | H27: =-0.40614*SIN(F27)+0.17302*SIN(E27)+0.01614*SIN(2*F27)+0.01043*SIN(2*G27)+0.00734*SIN(F27-E27)-0.00515*SIN(F27+E27)+0.00209*SIN(2*E27)-0.00111*SIN(F27-2*G27)+D27 -> 2461221.499
A28: =A27 -> 2026.48 | B28: 0.75 | C28: 327.75 | D28: 2461228.748 | E28: 166.536421 | F28: 2210.512989 | G28: 2237.563904 | H28: =-0.62801*SIN(F28)+0.17172*SIN(E28)-0.01183*SIN(F28+E28)+0.00862*SIN(2*F28)+0.00804*SIN(2*G28)+0.00454*SIN(F28-E28)+0.00204*SIN(2*E28)-0.0018*SIN(F28-2*G28)+D28-0.00306 -> 2461229.314
A29: =A25+0.08 -> 2026.56 | B29: 0 | C29: 328 | D29: 2461236.131 | E29: 166.6634171 | F29: 2212.196433 | G29: 2239.268526 | H29: =-0.4072*SIN(F29)+0.17241*SIN(E29)+0.01608*SIN(2*F29)+0.01039*SIN(2*G29)+0.00739*SIN(F29-E29)-0.00514*SIN(F29+E29)+0.00208*SIN(2*E29)-0.00111*SIN(F29-2*G29)+D29 -> 2461235.907
A30: =A29 -> 2026.56 | B30: 0.25 | C30: 328.25 | D30: 2461243.513 | E30: 166.7904132 | F30: 2213.879877 | G30: 2240.973148 | H30: =-0.62801*SIN(F30)+0.17172*SIN(E30)-0.01183*SIN(F30+E30)+0.00862*SIN(2*F30)+0.00804*SIN(2*G30)+0.00454*SIN(F30-E30)+0.00204*SIN(2*E30)-0.0018*SIN(F30-2*G30)+D30+0.00306 -> 2461242.963
A31: =A30 -> 2026.56 | B31: 0.5 | C31: 328.5 | D31: 2461250.896 | E31: 166.9174092 | F31: 2215.563321 | G31: 2242.677769 | H31: =-0.40614*SIN(F31)+0.17302*SIN(E31)+0.01614*SIN(2*F31)+0.01043*SIN(2*G31)+0.00734*SIN(F31-E31)-0.00515*SIN(F31+E31)+0.00209*SIN(2*E31)-0.00111*SIN(F31-2*G31)+D31 -> 2461251.109
A32: =A31 -> 2026.56 | B32: 0.75 | C32: 328.75 | D32: 2461258.279 | E32: 167.0444053 | F32: 2217.246765 | G32: 2244.382391 | H32: =-0.62801*SIN(F32)+0.17172*SIN(E32)-0.01183*SIN(F32+E32)+0.00862*SIN(2*F32)+0.00804*SIN(2*G32)+0.00454*SIN(F32-E32)+0.00204*SIN(2*E32)-0.0018*SIN(F32-2*G32)+D32-0.00306 -> 2461258.6
A33: =A29+0.08 -> 2026.64 | B33: 0 | C33: 329 | D33: 2461265.661 | E33: 167.1714014 | F33: 2218.930209 | G33: 2246.087012 | H33: =-0.4072*SIN(F33)+0.17241*SIN(E33)+0.01608*SIN(2*F33)+0.01039*SIN(2*G33)+0.00739*SIN(F33-E33)-0.00514*SIN(F33+E33)+0.00208*SIN(2*E33)-0.00111*SIN(F33-2*G33)+D33 -> 2461265.236
A34: =A33 -> 2026.64 | B34: 0.25 | C34: 329.25 | D34: 2461273.044 | E34: 167.2983975 | F34: 2220.613653 | G34: 2247.791634 | H34: =-0.62801*SIN(F34)+0.17172*SIN(E34)-0.01183*SIN(F34+E34)+0.00862*SIN(2*F34)+0.00804*SIN(2*G34)+0.00454*SIN(F34-E34)+0.00204*SIN(2*E34)-0.0018*SIN(F34-2*G34)+D34+0.00306 -> 2461272.616
A35: =A34 -> 2026.64 | B35: 0.5 | C35: 329.5 | D35: 2461280.427 | E35: 167.4253935 | F35: 2222.297097 | G35: 2249.496256 | H35: =-0.40614*SIN(F35)+0.17302*SIN(E35)+0.01614*SIN(2*F35)+0.01043*SIN(2*G35)+0.00734*SIN(F35-E35)-0.00515*SIN(F35+E35)+0.00209*SIN(2*E35)-0.00111*SIN(F35-2*G35)+D35 -> 2461280.68
A36: =A35 -> 2026.64 | B36: 0.75 | C36: 329.75 | D36: 2461287.809 | E36: 167.5523896 | F36: 2223.980541 | G36: 2251.200877 | H36: =-0.62801*SIN(F36)+0.17172*SIN(E36)-0.01183*SIN(F36+E36)+0.00862*SIN(2*F36)+0.00804*SIN(2*G36)+0.00454*SIN(F36-E36)+0.00204*SIN(2*E36)-0.0018*SIN(F36-2*G36)+D36-0.00306 -> 2461287.828
A37: =A33+0.08 -> 2026.72 | B37: 0 | C37: 330 | D37: 2461295.192 | E37: 167.6793857 | F37: 2225.663985 | G37: 2252.905499 | H37: =-0.4072*SIN(F37)+0.17241*SIN(E37)+0.01608*SIN(2*F37)+0.01039*SIN(2*G37)+0.00739*SIN(F37-E37)-0.00514*SIN(F37+E37)+0.00208*SIN(2*E37)-0.00111*SIN(F37-2*G37)+D37 -> 2461294.644
A38: =A37 -> 2026.72 | B38: 0.25 | C38: 330.25 | D38: 2461302.575 | E38: 167.8063818 | F38: 2227.347429 | G38: 2254.610121 | H38: =-0.62801*SIN(F38)+0.17172*SIN(E38)-0.01183*SIN(F38+E38)+0.00862*SIN(2*F38)+0.00804*SIN(2*G38)+0.00454*SIN(F38-E38)+0.00204*SIN(2*E38)-0.0018*SIN(F38-2*G38)+D38+0.00306 -> 2461302.365
A39: =A38 -> 2026.72 | B39: 0.5 | C39: 330.5 | D39: 2461309.957 | E39: 167.9333778 | F39: 2229.030873 | G39: 2256.314742 | H39: =-0.40614*SIN(F39)+0.17302*SIN(E39)+0.01614*SIN(2*F39)+0.01043*SIN(2*G39)+0.00734*SIN(F39-E39)-0.00515*SIN(F39+E39)+0.00209*SIN(2*E39)-0.00111*SIN(F39-2*G39)+D39 -> 2461310.201
A40: =A39 -> 2026.72 | B40: 0.75 | C40: 330.75 | D40: 2461317.34 | E40: 168.0603739 | F40: 2230.714317 | G40: 2258.019364 | H40: =-0.62801*SIN(F40)+0.17172*SIN(E40)-0.01183*SIN(F40+E40)+0.00862*SIN(2*F40)+0.00804*SIN(2*G40)+0.00454*SIN(F40-E40)+0.00204*SIN(2*E40)-0.0018*SIN(F40-2*G40)+D40-0.00306 -> 2461317.06
A41: =A37+0.08 -> 2026.8 | B41: 0 | C41: 331 | D41: 2461324.723 | E41: 168.18737 | F41: 2232.397761 | G41: 2259.723986 | H41: =-0.4072*SIN(F41)+0.17241*SIN(E41)+0.01608*SIN(2*F41)+0.01039*SIN(2*G41)+0.00739*SIN(F41-E41)-0.00514*SIN(F41+E41)+0.00208*SIN(2*E41)-0.00111*SIN(F41-2*G41)+D41 -> 2461324.159
A42: =A41 -> 2026.8 | B42: 0.25 | C42: 331.25 | D42: 2461332.105 | E42: 168.3143661 | F42: 2234.081205 | G42: 2261.428607 | H42: =-0.62801*SIN(F42)+0.17172*SIN(E42)-0.01183*SIN(F42+E42)+0.00862*SIN(2*F42)+0.00804*SIN(2*G42)+0.00454*SIN(F42-E42)+0.00204*SIN(2*E42)-0.0018*SIN(F42-2*G42)+D42+0.00306 -> 2461332.177
A43: =A42 -> 2026.8 | B43: 0.5 | C43: 331.5 | D43: 2461339.488 | E43: 168.4413621 | F43: 2235.764649 | G43: 2263.133229 | H43: =-0.40614*SIN(F43)+0.17302*SIN(E43)+0.01614*SIN(2*F43)+0.01043*SIN(2*G43)+0.00734*SIN(F43-E43)-0.00515*SIN(F43+E43)+0.00209*SIN(2*E43)-0.00111*SIN(F43-2*G43)+D43 -> 2461339.675
A44: =A43 -> 2026.8 | B44: 0.75 | C44: 331.75 | D44: 2461346.871 | E44: 168.5683582 | F44: 2237.448092 | G44: 2264.837851 | H44: =-0.62801*SIN(F44)+0.17172*SIN(E44)-0.01183*SIN(F44+E44)+0.00862*SIN(2*F44)+0.00804*SIN(2*G44)+0.00454*SIN(F44-E44)+0.00204*SIN(2*E44)-0.0018*SIN(F44-2*G44)+D44-0.00306 -> 2461346.355
A45: =A41+0.08 -> 2026.88 | B45: 0 | C45: 332 | D45: 2461354.253 | E45: 168.6953543 | F45: 2239.131536 | G45: 2266.542472 | H45: =-0.4072*SIN(F45)+0.17241*SIN(E45)+0.01608*SIN(2*F45)+0.01039*SIN(2*G45)+0.00739*SIN(F45-E45)-0.00514*SIN(F45+E45)+0.00208*SIN(2*E45)-0.00111*SIN(F45-2*G45)+D45 -> 2461353.793
A46: =A45 -> 2026.88 | B46: 0.25 | C46: 332.25 | D46: 2461361.636 | E46: 168.8223504 | F46: 2240.81498 | G46: 2268.247094 | H46: =-0.62801*SIN(F46)+0.17172*SIN(E46)-0.01183*SIN(F46+E46)+0.00862*SIN(2*F46)+0.00804*SIN(2*G46)+0.00454*SIN(F46-E46)+0.00204*SIN(2*E46)-0.0018*SIN(F46-2*G46)+D46+0.00306 -> 2461361.993
A47: =A46 -> 2026.88 | B47: 0.5 | C47: 332.5 | D47: 2461369.018 | E47: 168.9493464 | F47: 2242.498424 | G47: 2269.951715 | H47: =-0.40614*SIN(F47)+0.17302*SIN(E47)+0.01614*SIN(2*F47)+0.01043*SIN(2*G47)+0.00734*SIN(F47-E47)-0.00515*SIN(F47+E47)+0.00209*SIN(2*E47)-0.00111*SIN(F47-2*G47)+D47 -> 2461369.121
A48: =A47 -> 2026.88 | B48: 0.75 | C48: 332.75 | D48: 2461376.401 | E48: 169.0763425 | F48: 2244.181868 | G48: 2271.656337 | H48: =-0.62801*SIN(F48)+0.17172*SIN(E48)-0.01183*SIN(F48+E48)+0.00862*SIN(2*F48)+0.00804*SIN(2*G48)+0.00454*SIN(F48-E48)+0.00204*SIN(2*E48)-0.0018*SIN(F48-2*G48)+D48-0.00306 -> 2461375.758
A49: =A45+0.08 -> 2026.96 | B49: 0 | C49: 333 | D49: 2461383.784 | E49: 169.2033386 | F49: 2245.865312 | G49: 2273.360959 | H49: =-0.4072*SIN(F49)+0.17241*SIN(E49)+0.01608*SIN(2*F49)+0.01039*SIN(2*G49)+0.00739*SIN(F49-E49)-0.00514*SIN(F49+E49)+0.00208*SIN(2*E49)-0.00111*SIN(F49-2*G49)+D49 -> 2461383.538
A50: =A49 -> 2026.96 | B50: 0.25 | C50: 333.25 | D50: 2461391.166 | E50: 169.3303347 | F50: 2247.548756 | G50: 2275.06558 | H50: =-0.62801*SIN(F50)+0.17172*SIN(E50)-0.01183*SIN(F50+E50)+0.00862*SIN(2*F50)+0.00804*SIN(2*G50)+0.00454*SIN(F50-E50)+0.00204*SIN(2*E50)-0.0018*SIN(F50-2*G50)+D50+0.00306 -> 2461391.739
A51: =A50 -> 2026.96 | B51: 0.5 | C51: 333.5 | D51: 2461398.549 | E51: 169.4573307 | F51: 2249.2322 | G51: 2276.770202 | H51: =-0.40614*SIN(F51)+0.17302*SIN(E51)+0.01614*SIN(2*F51)+0.01043*SIN(2*G51)+0.00734*SIN(F51-E51)-0.00515*SIN(F51+E51)+0.00209*SIN(2*E51)-0.00111*SIN(F51-2*G51)+D51 -> 2461398.562
A52: =A51 -> 2026.96 | B52: 0.75 | C52: 333.75 | D52: 2461405.932 | E52: 169.5843268 | F52: 2250.915644 | G52: 2278.474824 | H52: =-0.62801*SIN(F52)+0.17172*SIN(E52)-0.01183*SIN(F52+E52)+0.00862*SIN(2*F52)+0.00804*SIN(2*G52)+0.00454*SIN(F52-E52)+0.00204*SIN(2*E52)-0.0018*SIN(F52-2*G52)+D52-0.00306 -> 2461405.292
A53: =A49+0.08 -> 2027.04 | B53: 0 | C53: 334 | D53: 2461413.314 | E53: 169.7113229 | F53: 2252.599088 | G53: 2280.179445 | H53: =-0.4072*SIN(F53)+0.17241*SIN(E53)+0.01608*SIN(2*F53)+0.01039*SIN(2*G53)+0.00739*SIN(F53-E53)-0.00514*SIN(F53+E53)+0.00208*SIN(2*E53)-0.00111*SIN(F53-2*G53)+D53 -> 2461413.352
A54: =A53 -> 2027.04 | B54: 0.25 | C54: 334.25 | D54: 2461420.697 | E54: 169.838319 | F54: 2254.282532 | G54: 2281.884067 | H54: =-0.62801*SIN(F54)+0.17172*SIN(E54)-0.01183*SIN(F54+E54)+0.00862*SIN(2*F54)+0.00804*SIN(2*G54)+0.00454*SIN(F54-E54)+0.00204*SIN(2*E54)-0.0018*SIN(F54-2*G54)+D54+0.00306 -> 2461421.359
A55: =A54 -> 2027.04 | B55: 0.5 | C55: 334.5 | D55: 2461428.08 | E55: 169.9653151 | F55: 2255.965976 | G55: 2283.588689 | H55: =-0.40614*SIN(F55)+0.17302*SIN(E55)+0.01614*SIN(2*F55)+0.01043*SIN(2*G55)+0.00734*SIN(F55-E55)-0.00515*SIN(F55+E55)+0.00209*SIN(2*E55)-0.00111*SIN(F55-2*G55)+D55 -> 2461428.013
A56: =A55 -> 2027.04 | B56: 0.75 | C56: 334.75 | D56: 2461435.462 | E56: 170.0923111 | F56: 2257.64942 | G56: 2285.29331 | H56: =-0.62801*SIN(F56)+0.17172*SIN(E56)-0.01183*SIN(F56+E56)+0.00862*SIN(2*F56)+0.00804*SIN(2*G56)+0.00454*SIN(F56-E56)+0.00204*SIN(2*E56)-0.0018*SIN(F56-2*G56)+D56-0.00306 -> 2461434.955
